Cogmind - Beta 17.1 @@@ ROGUE MODE // 2026.08.20 @ 04:51:03 Player: JuustuToug Result: Escaped! Performance ------------- Evolutions (9) 4500 Regions Visited (30) 6000 Robots Destroyed (450) 2250 Value Destroyed (25218) 25218 Prototype IDs (167) 3340 Alien Tech Used (6) 1200 Bonus (15573) 15573 TOTAL SCORE: 58081 Bonus ------- High Alert Combat Kills 6187 Follower Combat Kills 1667 Hunted by Unchained 500 Network Hubs Disabled 600 Aligned with FarCom 300 Met Data Miner 300 Met Zhirov 300 Built Enhanced Grunts 300 Met R17 at Cetus 500 Met R17 at Research 2000 Scanned by Researcher 500 Win 3000 Friendly Fire -581 Cogmind --------- Core Integrity 1194/1600 Matter 70/300 Energy 912/1000 System Corruption 14% Temperature Cool (-196) Movement Walking (110) Location To Epsilon Eridani Parts ------- > --- POWER (2) -------- Quantum Reactor Experimental Antimatter Reactor > --- PROPULSION (6) --- Experimental Armored Exoskeleton Concept Biometal Exoskeleton > --- UTILITY (13) ----- Advanced Cryofiber Web Concept Phasing Heat Sink Concept Thermoelectric Network Concept Antigrav Storage Unit Triangulator Concept Weapon Articulator Experimental Core Analyzer Graphene Brace Advanced Focal Shield > --- WEAPON (4) ------- Enhanced Nova Cannon > --- INVENTORY (25) --- Quantum Reactor Light Quantum Reactor Light Quantum Reactor Centrium Leg Centrium Leg Centrium Leg Centrium Leg Centrium Leg Centrium Leg Concept NT7 Matterbank (14) Experimental Sensor Array SHELL Armor Concept Matter Streamer Enhanced Hardcell Cannon Enhanced Hardcell Cannon Concept Arcsight Missile Launcher Peak State ------------ > --- POWER ------------ Experimental Antimatter Reactor Concept Zero-point Core > --- PROPULSION ------- Experimental Armored Exoskeleton Concept Biometal Exoskeleton > --- UTILITY ---------- Concept Antigrav Storage Unit Enhanced Optical Array Advanced Signal Interpreter Experimental Core Analyzer Concept Cloak Mesh SHELL Armor Concept Energy Mantle Concept Navigation Harness > --- WEAPON ----------- Concept Plasma Driver Concept XC Strikerail Concept Miniperforator Concept Miniperforator > --- INVENTORY -------- Experimental Antimatter Reactor Experimental Antimatter Reactor Experimental Armored Exoskeleton Concept Biometal Exoskeleton Advanced Cryofiber Web Concept Phasing Heat Sink Concept Thermoelectric Network Concept Chromion Battery Concept NT7 Matterbank Experimental Sensor Array Concept Weapon Articulator Concept Reaction Jets Graphene Brace Concept Beam Splitter Concept Energy Mantle Concept Matter Streamer Transdimensional Reconstructor Terrabomb Concept Helical Railcannon Concept Rapid Grenade Launcher Concept Arcsight Missile Launcher [Rating: 283] Favorites ----------- Power Light Ion Engine Engine Light Ion Engine Power Core Neutrino Core Reactor Experimental Antimatter Reactor Propulsion Flexi-carbon Leg Treads Light Treads Leg Flexi-carbon Leg Wheel Armored Huge Wheel Utility High-capacity Storage Unit Device Experimental Sensor Array Storage High-capacity Storage Unit Processor Core Analyzer Hackware Experimental Hacking Suite Protection Hardened Medium Armor Plating Artifact Phase Redirector Weapon Coil Gun Energy Gun Advanced Beam Rifle Energy Cannon Enhanced Nova Cannon Ballistic Gun Coil Gun Ballistic Cannon Concept Miniperforator Launcher Grenade Launcher Impact Weapon Impact Mace Slashing Weapon Plasma Sword Piercing Weapon Spear Build | -11 -10 -10 -10 -9 -8 -7 -7 -7 -6 -6 -6 -6 -5 -5 -5 -5 -5 -4 -4 -4 -4 -4 -4 -3 -3 -2 -2 -2 -1 -1 ------- Run | Yrd Mat Min Exi Min Mat Fac Low Low Fac Low Low Dat Pro Fac Upp Upp Zhi Pro Fac Ext Cet Arc Hub Res Qua Res Tes Frg Acc Com Slots Evolved 18 | . . . . . 4 2 . . 2 . . . . 2 . . . . 2 . . . . 2 . 2 . . 2 . Power 1 | . . . . . . . . . . . . . . 1 . . . . . . . . . . . . . . . . Propulsion 4 | . . . . . 2 1 . . . . . . . . . . . . . . . . . . . 1 . . . . Utility 11 | . . . . . 1 1 . . 2 . . . . . . . . . 2 . . . . 2 . 1 . . 2 . Weapon 2 | . . . . . 1 . . . . . . . . 1 . . . . . . . . . . . . . . . . Parts Attached 318 | 7 6 . 3 6 27 16 3 . 21 7 . . 4 25 2 4 3 1 16 23 9 2 5 25 8 16 13 45 16 5 Power 39 | 1 2 . . 1 3 . . . 1 1 . . 1 3 1 1 1 . 1 4 1 . . 2 . 2 2 9 1 1 Engine 10 | 1 2 . . 1 3 . . . . 1 . . . 2 . . . . . . . . . . . . . . . . Core 10 | . . . . . . . . . 1 . . . 1 1 1 1 . . 1 2 . . . . . . . 2 . . Reactor 19 | . . . . . . . . . . . . . . . . . 1 . . 2 1 . . 2 . 2 2 7 1 1 Propulsion 81 | 2 . . 1 1 12 8 1 . 4 2 . . 3 7 . . 1 . 3 11 2 . 2 3 2 2 3 6 4 1 Treads 2 | 2 . . . . . . . . . . . . . . . . . . . . . . . . . . . . . . Leg 78 | . . . 1 1 12 7 1 . 4 2 . . 3 7 . . 1 . 3 11 2 . 2 3 2 2 3 6 4 1 Wheel 1 | . . . . . . 1 . . . . . . . . . . . . . . . . . . . . . . . . Hover . | . . . . . . . . . . . . . . . . . . . . . . . . . . . . . . . Flight . | . . . . . . . . . . . . . . . . . . . . . . . . . . . . . . . Utility 108 | 2 3 . 1 3 3 5 1 . 10 1 . . . 8 . 1 . . 9 4 4 2 2 11 4 6 4 20 4 . Device 60 | 1 2 . . 3 2 . 1 . 2 1 . . . 6 . 1 . . 4 1 . 2 1 8 1 2 1 17 4 . Storage 8 | 1 1 . 1 . . 1 . . . . . . . . . . . . . . . . 1 . . 1 1 1 . . Processor 10 | . . . . . . 1 . . 3 . . . . . . . . . 1 1 . . . 2 . . . 2 . . Hackware 5 | . . . . . . . . . 1 . . . . . . . . . 2 . . . . 1 . . 1 . . . Protection 24 | . . . . . 1 3 . . 4 . . . . 2 . . . . 2 2 4 . . . 2 3 1 . . . Artifact 1 | . . . . . . . . . . . . . . . . . . . . . . . . . 1 . . . . . Weapon 90 | 2 1 . 1 1 9 3 1 . 6 3 . . . 7 1 2 1 1 3 4 2 . 1 9 2 6 4 10 7 3 Energy Gun 24 | 2 . . . . 4 1 . . 2 2 . . . 2 . 2 . 1 1 . . . . 1 2 1 . 1 2 . Energy Cannon 16 | . . . 1 1 . . . . . . . . . 1 . . . . . . . . . 1 . 5 3 1 2 1 Ballistic Gun 35 | . . . . . 5 . 1 . 2 1 . . . 3 . . 1 . 2 4 2 . 1 6 . . 1 3 3 . Ballistic Cannon 6 | . . . . . . . . . 1 . . . . . . . . . . . . . . . . . . 3 . 2 Launcher 6 | . 1 . . . . . . . 1 . . . . . 1 . . . . . . . . 1 . . . 2 . . Special Weapon . | . . . . . . . . . . . . . . . . . . . . . . . . . . . . . . . Impact Weapon 1 | . . . . . . 1 . . . . . . . . . . . . . . . . . . . . . . . . Slashing Weapon 1 | . . . . . . . . . . . . . . 1 . . . . . . . . . . . . . . . . Piercing Weapon 1 | . . . . . . 1 . . . . . . . . . . . . . . . . . . . . . . . . Special Melee Weapon . | . . . . . . . . . . . . . . . . . . . . . . . . . . . . . . . Unidentified Prototypes 53 | . . . . 1 2 2 . . 2 . . . . 2 . . 2 . 4 . 3 . 3 6 3 2 6 15 . . Corrupted Parts 1 | . . . . . . . . . . . . . . . . . . . . . . . . . . . . 1 . . System Corruption 7 | . . . . . . . . . . . . . . . . . . . . . . . . . . . . 7 . . Parts Lost 74 | . 3 . 3 . 2 1 . 1 6 1 . . . 5 . 2 . . 2 . . . 3 1 . 7 4 19 3 11 Power 10 | . 2 . . . . . . . . . . . . 1 . 1 . . . . . . . . . 1 2 2 . 1 Propulsion 20 | . . . 1 . 1 . . 1 5 . . . . 2 . . . . 1 . . . . . . 2 1 4 1 1 Utility 17 | . 1 . 1 . . 1 . . . . . . . . . . . . 1 . . . 1 1 . 1 1 3 2 4 Weapon 27 | . . . 1 . 1 . . . 1 1 . . . 2 . 1 . . . . . . 2 . . 3 . 10 . 5 Highest Loss Streak 10 | . 2 . 3 . 1 1 . 1 3 1 . . . 2 . 2 . . 1 . . . 3 1 . 4 1 5 2 10 To Critical Strikes 4 | . . . . . . . . . . . . . . . . . . . . . . . . . . . . 3 1 . Average Backups 18 | 2 10 14 16 16 19 19 19 18 16 17 18 18 17 18 19 18 18 18 18 18 19 19 19 18 19 19 19 21 20 20 Power 1 | . . 1 3 4 1 1 1 1 1 . . . . . 1 . . 1 1 . 1 1 1 . 1 1 . 1 3 3 Propulsion 2 | . 1 2 1 1 3 4 3 3 1 2 2 2 2 3 3 4 3 3 2 3 3 3 3 2 2 2 2 1 5 6 Utility 8 | . 3 6 6 6 7 8 8 8 7 8 8 8 7 9 9 9 9 9 9 9 9 10 10 8 8 6 8 10 6 5 Weapon 5 | . 4 5 5 4 6 6 6 6 6 7 8 8 7 5 5 4 5 4 4 4 4 4 4 5 5 5 5 5 3 3 Tool/Special . | . . . . . . . . . . . . . . . . . . . . . . . . . . . . . . . Unused Backups 87 | . 1 . 1 1 17 . 1 . 4 . . . 1 7 . . 1 1 7 2 1 . . 7 4 2 3 14 1 11 Power 15 | . . . . 1 8 . . . . . . . . . . . . . 1 . . . . 1 . . . 1 . 3 Propulsion 15 | . 1 . . . 2 . . . . . . . . . . . . . . . . . . 1 1 . 2 1 1 6 Utility 44 | . . . 1 . 5 . 1 . 3 . . . 1 6 . . 1 1 5 1 1 . . 4 1 2 1 8 . 2 Weapon 11 | . . . . . 2 . . . 1 . . . . 1 . . . . 1 1 . . . 1 1 . . 3 . . Tool/Special 2 | . . . . . . . . . . . . . . . . . . . . . . . . . 1 . . 1 . . Average Slot Usage (%) 94 | . 99 100 100 99 99 93 100 99 99 100 100 83 100 99 100 99 77 100 93 95 99 100 98 99 99 98 88 75 73 65 Engine 4 | . 13 14 14 14 9 7 7 7 1 5 6 6 . 7 11 7 3 . . . . . . . . . . . . . Core 1 | . . . . . . . . . 4 . . . 5 3 . 2 5 5 5 5 5 5 5 3 . . . . . . Reactor 2 | . . . . . . . . . . . . . . . . . 1 5 . 1 5 5 5 4 9 8 7 6 8 7 Treads 3 | . 28 28 27 13 . . . . . . . . . . . . . . . . . . . . . . . . . . Leg 22 | . . . . 14 35 25 38 37 32 33 33 33 33 28 29 29 29 29 26 26 26 26 26 23 23 25 25 16 9 8 Device 10 | . 13 14 14 13 9 7 7 7 6 6 6 6 6 5 5 4 4 5 9 10 5 5 8 15 11 11 9 13 23 26 Storage 6 | . 14 14 14 14 9 7 7 7 6 6 6 6 6 5 5 5 5 5 5 5 5 5 5 4 4 4 4 4 4 4 Processor 12 | . . . . . . 6 7 7 15 20 20 20 20 17 17 17 17 17 15 15 15 15 15 14 19 17 17 15 12 7 Hackware 1 | . . . . . . . . . 2 . . . . . . . . . 4 5 5 5 5 4 4 4 4 . . . Protection 4 | . . . . . 8 6 7 7 6 6 6 6 6 4 5 5 5 4 4 5 9 10 6 6 4 8 5 4 4 3 Energy Gun 6 | . 27 16 14 14 11 7 7 7 6 5 6 . 6 4 4 4 . 10 6 5 . . . . . 1 . 1 3 3 Energy Cannon 2 | . . . . 14 . . . . . . . . . . . . . . 1 . . . 1 1 3 4 11 6 2 4 Ballistic Gun 9 | . . . . . 15 10 15 15 10 12 13 2 12 16 17 16 1 11 12 15 20 21 18 17 14 9 1 1 4 . Peak Build Rating 283 | 7 8 8 9 17 45 53 52 51 66 67 67 67 69 84 83 83 88 91 102 121 133 133 135 158 174 182 198 283 280 276 Average Rating 101 | 5 7 8 8 11 30 49 50 49 60 65 66 53 67 78 78 79 63 89 96 107 127 130 128 143 163 173 184 226 258 244 On Entrance 89 | . 7 8 8 7 14 42 50 50 47 66 67 67 67 68 79 79 83 88 88 102 117 133 133 119 156 174 170 195 220 275 Avg Prop Armor Cover (%) 11 | . . . 8 8 . 12 . . . . . . . . . . . . . . . . . . . 2 . . . . Naked Turns . | . . . . . . . . . . . . . . . . . . . . . . . . . . . . . . . Heaviest Build 165 | 12 47 49 49 52 64 68 66 66 74 72 72 72 72 90 90 84 92 98 89 100 105 105 105 114 125 146 160 165 152 153 Greatest Support 163 | 40 40 40 40 20 68 89 89 87 87 90 90 90 90 95 89 89 89 89 89 105 105 105 121 131 131 151 163 163 158 158 Greatest Overweight (x) 2 | . 1 1 2 2 1 2 . . 1 . 1 . . 1 1 . 1 1 1 . . . . . . . 1 1 1 . Average Overweight (x) . | . . 1 1 2 . 1 . . . . . . . . . . . 1 . . . . . . . . . . . . Largest Inventory Capacity 25 | 8 20 20 20 20 20 20 20 20 20 20 20 20 20 20 20 20 20 20 20 20 20 20 20 20 20 20 20 25 25 25 Average Capacity 20 | 5 15 20 20 20 20 20 20 20 20 20 20 20 20 20 20 20 20 20 20 20 20 20 20 20 20 20 20 23 25 25 Most Carried 25 | 4 14 14 18 20 20 20 20 20 20 20 20 20 20 20 20 20 20 20 20 20 20 20 20 20 20 20 20 25 25 25 Average Carried 19 | 2 10 14 16 16 19 19 19 20 18 19 20 20 19 19 20 19 19 19 19 19 19 20 19 19 19 18 19 22 21 20 Final Capacity 25 | 8 20 20 20 20 20 20 20 20 20 20 20 20 20 20 20 20 20 20 20 20 20 20 20 20 20 20 20 25 25 25 Final Carried 25 | 4 14 14 16 19 20 20 20 20 20 20 20 20 20 20 20 20 19 20 20 20 20 20 20 20 20 20 19 23 25 18 Class Distribution -------------------- 38% | Scavenger-Skirmisher 19% | Mutant 14% | Scavenger-Gunner 11% | Scavenger-Tank 5% | Scavenger-Mutant 3% | Skirmisher Dominant Class ---------------- Mutant | -10/Materials Mutant | -10/Mines Mutant | -10/Exiles Mutant | -9/Mines Scavenger-Tank | -8/Materials Scavenger-Mutant | -7/Factory Scavenger-Gunner | -7/Lower Caves Scavenger-Gunner | -7/Lower Caves Scavenger-Assassin | -6/Factory Scavenger-Skirmisher | -6/Lower Caves Scavenger-Skirmisher | -6/Lower Caves Scavenger-Mutant | -6/Data Miner Scavenger-Skirmisher | -5/Proximity Caves Scavenger-Skirmisher | -5/Factory Scavenger-Skirmisher | -5/Upper Caves Scavenger-Skirmisher | -5/Upper Caves Scavenger-Mutant | -5/Zhirov Scavenger-Skirmisher | -4/Proximity Caves Scavenger-Skirmisher | -4/Factory Scavenger-Gunner | -4/Extension Scavenger-Tank | -4/Cetus Scavenger-Tank | -4/Archives Scavenger-Gunner | -4/Hub_04(d) Scavenger-Skirmisher | -3/Research Scavenger-Skirmisher | -3/Quarantine Scavenger-Skirmisher | -2/Research Scavenger-Skirmisher | -2/Testing Scavenger-Gunner | -2/Protoforge Scavenger-Tank | -1/Access Mutant | -1/Command Resources | -11 -10 -10 -10 -9 -8 -7 -7 -7 -6 -6 -6 -6 -5 -5 -5 -5 -5 -4 -4 -4 -4 -4 -4 -3 -3 -2 -2 -2 -1 -1 ----------- Run | Yrd Mat Min Exi Min Mat Fac Low Low Fac Low Low Dat Pro Fac Upp Upp Zhi Pro Fac Ext Cet Arc Hub Res Qua Res Tes Frg Acc Com Matter Collected 20688 | 270 301 52 20 145 1036 745 98 66 1183 331 298 . 237 1326 258 249 250 276 1028 1371 502 . 420 1092 390 1295 630 4832 1392 595 Remotely 3832 | . . . . . . . . . . . . . . 140 . . . . 344 . 328 . 86 40 154 548 277 1413 305 197 Salvage Created 22348 | 131 274 . . 113 1334 829 93 . 1319 245 181 . 123 1258 527 396 . 239 990 1628 235 37 1364 1138 616 1696 1291 4221 1803 267 Parts 1110 | 12 31 . . 14 88 48 4 . 71 7 11 . 13 60 12 12 . 7 39 79 11 3 50 67 35 107 49 205 73 2 Haulers Intercepted 11 | . . . . . 2 1 . . 1 . . . . 1 . . . . 2 . . . 3 . 1 . . . . . Recyclers Shooed 11 | . 1 . . . 1 1 . . . . . . . 2 . . . . . . . . . 1 . 4 . . 1 . Parts Field Recycled . | . . . . . . . . . . . . . . . . . . . . . . . . . . . . . . . Retrieved Matter . | . . . . . . . . . . . . . . . . . . . . . . . . . . . . . . . Parts Self-Destructed 41 | . . . . . . . 3 . . 3 13 . 10 . 1 4 . 7 . . . . . . . . . . . . Prevented 27 | . . . . . . . . . . . . . . . 21 6 . . . . . . . . . . . . . . Parts Restored 2 | . . . . . . . . . . . . . . . . . . . . . . . . . . . . 2 . . Faulty 2 | . . . . . . . . . . . . . . . . . . . . . . . . . . . . 2 . . Kills | -11 -10 -10 -10 -9 -8 -7 -7 -7 -6 -6 -6 -6 -5 -5 -5 -5 -5 -4 -4 -4 -4 -4 -4 -3 -3 -2 -2 -2 -1 -1 ------- Run | Yrd Mat Min Exi Min Mat Fac Low Low Fac Low Low Dat Pro Fac Upp Upp Zhi Pro Fac Ext Cet Arc Hub Res Qua Res Tes Frg Acc Com Combat Hostiles Destroyed 334 | . 12 . . 5 26 13 1 . 20 5 4 . 4 14 8 7 . 3 10 19 2 . 12 12 5 19 17 85 21 10 Guns 167 | . 6 . . . 24 7 1 . 17 3 4 . 2 14 . 4 . 3 10 19 2 . 4 8 5 12 3 11 7 1 Cannons 49 | . . . . 1 . . . . . . . . . . . . . . . . . . . . . 3 8 27 10 . AOE 78 | . 6 . . 4 2 6 . . 3 2 . . 2 . 5 1 . . . . . . 4 1 . 2 5 29 . 6 Classes Destroyed 32 | 2 5 . . . 6 1 1 . . 1 . . 1 1 1 1 . . . . . . 1 2 . . 1 6 2 . Worker 29 | . 2 . . . 1 1 . . 1 . . . . 2 . . . . . 1 . . 6 1 1 5 5 3 . . Builder 32 | . 1 . . . . 2 . . 2 . . . . . . . . . 2 4 . . 2 2 . 8 6 2 1 . Tunneler 12 | 4 1 . . 2 . 1 . . 2 . . . . . . . . . . . . . . 1 . . . . 1 . Hauler 11 | . . . . . 2 1 . . 1 . . . . 1 . . . . 2 . . . 3 . 1 . . . . . Recycler 12 | 1 . . . . 1 3 . . . . . . . 2 . . . . . 2 . . . 1 1 . . . 1 . Minesweeper 2 | . . . . . . . 1 . . . . . . . . . . 1 . . . . . . . . . . . . Mechanic 2 | . . . . . . . . . . . . . . 1 . . . . . . . . . . . 1 . . . . Operator 4 | . . . . . 1 . . . 1 . . . . . . . . . . 1 . . 1 . . . . . . . Drone 14 | . . . . . . . . . . . . . 2 . . . . . . . . . . . . . 1 11 . . Watcher 11 | . 2 . . . . 2 . . 1 . . . . 2 . . . . 1 1 . . . 1 . 1 . . . . Swarmer 42 | . 9 . . 4 6 6 . . 3 . 2 . . . . 3 . . . 3 . . . . . . . . . 6 Saboteur 1 | . . . . . . . . . . . . . . . . . . . . . . . . . . . . 1 . . Grunt 89 | . 3 . . 1 8 2 . . 3 4 . . . 5 7 4 . . 5 7 . . 9 4 2 2 10 9 4 . Brawler 5 | . . . . . . . . . . . . . . . 1 . . . 1 . . . . 1 . . . 1 1 . Duelist 2 | . . . . . 1 . . . . . . . . . . . . . . 1 . . . . . . . . . . Protector 1 | . . . . . . . . . . . . . . . . . . . . . . . . . . . . 1 . . Researcher 8 | . . . . . . . . . . . . . . . . . . . . . . . . . . . 1 7 . . Sentry 42 | . . . . . 5 3 . . 9 . . . . 2 . . . 1 2 5 . . . . . . . 11 3 1 Specialist 4 | . . . . . 4 . . . . . . . . . . . . . . . . . . . . . . . . . Hunter 31 | . . . . . 2 . 1 . 2 . . . 2 . . . . . . 2 . . 2 . . 4 5 4 7 . Programmer 50 | . . . . . . 2 . . 3 . 1 . . 7 . . . 2 2 . . . . 1 3 13 1 15 . . Heavy 1 | . . . . . . . . . . . . . . . . . . . . . . . . . . . . . 1 . Q-Series 4 | . . . . . . . . . . . . . . . . . . . . . . . . . . . . . 4 . Behemoth 3 | . . . . . . . . . . . . . . . . . . . . . . . 1 1 . . . . 1 . Cetus Guard 2 | . . . . . . . . . . . . . . . . . . . . . 2 . . . . . . . . . M Guard 1 | . . . . . . . . . . . . . . . . . . . . . . . . . . . . . . 1 Hotshot 4 | . . . . . . . . . . . . . . . . . . . . . . . . . . . . 4 . . Decapitator 8 | . . . . . . . . . . . . . . . . . . . . . . . . . . . . 8 . . Immortal 6 | . . . . . . . . . . . . . . . . . . . . . . . . . . . . 6 . . Combat Programmer 2 | . . . . . . . . . . . . . . . . . . . . . . . . . . . . . . 2 Striker 3 | . . . . . . . . . . . . . . . . . . . . . . . . 3 . . . . . . Executioner 2 | . . . . . . . . . . . . . . . . . . . . . . . . 2 . . . . . . Alpha 7 2 | . . . . . . . . . . . . . . . . . . . . . . . . . . . . 2 . . V-Series 12 | . . . . . . . . . . . . . . . . . . . . . . . . . . . . 12 . . Samaritan 1 | . . . . . . . . . . . . . . . . 1 . . . . . . . . . . . . . . Tinkerer 1 | . . . . . . . . . . . . . . . . . . . . . . . . . . . . 1 . . Thug 1 | . . . . . . . . . . . . . . . . . . . . . 1 . . . . . . . . . Guerrilla 2 | . . . . . . . . . . . . . . . . . . . . 1 1 . . . . . . . . . Mutant 2 | . . . . . . . . . . 1 1 . . . . . . . . . . . . . . . . . . . Best Kill Streak 20 | 2 5 . . 4 5 9 1 . 8 4 2 . 2 4 4 3 . 1 4 6 1 . 20 4 4 14 12 8 7 7 Combat Bots Only 8 | . 3 . . 4 5 8 1 . 5 4 2 . 2 3 4 3 . 1 3 3 1 . 8 4 3 8 6 8 7 7 Max Kills in Single Turn 16 | 1 3 . . 4 2 4 1 . 2 2 1 . 1 2 2 2 . 1 2 4 1 . 16 1 1 3 5 6 2 5 Gunslinging 2 | . . . . . 1 . . . . . . . . . . . . . . 2 . . . . . 1 . . . . Exploded 6 | . 2 . . 4 1 3 . . 2 2 . . 1 . 2 1 . . . . . . 4 1 . 1 2 6 . 5 Melee . | . . . . . . . . . . . . . . . . . . . . . . . . . . . . . . . Uniques/NPCs Destroyed . | . . . . . . . . . . . . . . . . . . . . . . . . . . . . . . . Combat | -11 -10 -10 -10 -9 -8 -7 -7 -7 -6 -6 -6 -6 -5 -5 -5 -5 -5 -4 -4 -4 -4 -4 -4 -3 -3 -2 -2 -2 -1 -1 -------- Run | Yrd Mat Min Exi Min Mat Fac Low Low Fac Low Low Dat Pro Fac Upp Upp Zhi Pro Fac Ext Cet Arc Hub Res Qua Res Tes Frg Acc Com Hostile Shots Fired 2765 | . 56 . 37 9 91 91 5 36 224 32 11 . 3 107 25 24 . 15 62 66 11 . 34 51 20 171 158 848 325 253 Missed 972 | . 16 . 16 2 25 39 5 9 69 12 4 . . 37 9 12 . 3 18 17 . . 7 17 9 62 59 287 162 76 Intercepted 36 | . . . . . . . . . . . . . . . . . . . . . . . . . . . . 36 . . Deflected 6 | . . . . . . . . . . . . . . . . . . . . . . . . . . . . . . 6 Hits 1793 | . 40 . 21 7 66 52 . 27 155 20 7 . 3 70 16 12 . 12 44 49 11 . 27 34 11 109 99 561 163 177 Melee 109 | . . . 6 . . . . . . . . . . . . . . . . 2 . . . 1 . . . 99 1 . Projectile 1684 | . 40 . 15 7 66 52 . 27 155 20 7 . 3 70 16 12 . 12 44 47 11 . 27 33 11 109 99 462 162 177 AOE 98 | . . . . . . . . . . . 1 . . 4 . . . . . . . . . . . . . 45 1 47 Critical Strikes 166 | . . . . . 1 1 . . 1 3 . . . 5 1 . . 2 2 3 3 . 6 1 . 12 6 103 7 9 Actively Blocked 75 | . . . . . . . . . . . . . . . . . . . . . . . . 1 . . 1 58 6 9 Part Disruptions 8 | . . . . . . . . . . . 2 . . 1 . . . . . . . . . . 1 2 . 2 . . Damage Taken 37012 | . 459 44 339 82 1002 665 . 500 1650 323 147 . 73 1680 315 212 . 244 893 863 317 . 977 840 243 2622 2259 13088 1606 5569 Core 2460 | . 52 30 49 15 123 51 . 49 75 46 . . . 246 17 40 . 21 38 23 26 . 79 59 57 189 138 751 40 246 Absorbed by Shields 8686 | . . . . . . . . . . . . . . . . . . . . 195 . . . . . . . 4770 1456 2265 Redirected to Core 123 | . . . . . . . . . . . . . . . . . . . . . . . . . 57 66 . . . . Ignored by Resistances 3753 | . . . . . . . . . . . . . . . . . . . . . . . . . . . . 1177 1419 1157 Regen/Repaired (Parts) 8643 | . . . . . . . . . . . . . . . . . . . . . . . . . . 576 752 5696 1001 618 Core Remaining (%) 73 | 100 . . . 41 77 . . 85 . . . . 85 . . . . 67 . . . . 85 . 91 . . 25 . 74 Volleys Fired 1230 | 19 35 4 2 6 74 36 7 5 68 17 10 . 5 64 18 15 . 12 46 49 15 2 14 40 32 92 67 340 84 52 Largest 4 | 2 2 1 1 2 3 3 3 3 3 3 3 . 3 4 1 4 . 4 4 4 4 4 4 4 4 4 2 3 4 4 Hottest 398 | 90 90 30 60 100 140 111 111 111 130 135 135 . 135 178 90 174 . 236 236 191 140 140 140 190 144 278 240 398 320 370 Shots Fired 2608 | 38 64 4 2 9 218 93 21 15 186 47 29 . 9 210 18 38 . 37 143 195 61 8 47 117 53 178 77 410 199 82 Gun 1951 | 38 59 . . 3 216 87 21 15 184 45 29 . 6 199 1 30 . 35 130 195 61 8 45 101 30 107 15 163 112 16 Cannon 544 | . . . 1 5 . . . . . . . . . 11 5 1 . 2 13 . . . 2 6 23 65 62 198 87 63 Launcher 113 | . 5 4 1 1 2 6 . . 2 2 . . 3 . 12 7 . . . . . . . 10 . 6 . 49 . 3 Special . | . . . . . . . . . . . . . . . . . . . . . . . . . . . . . . . Kinetic 1488 | . . . . . 133 57 14 10 123 30 20 . 4 159 1 23 . 20 83 149 61 8 45 101 29 106 14 137 125 36 Thermal 987 | 38 59 . 1 8 83 30 7 5 61 15 9 . 2 51 5 8 . 17 60 46 . . 2 6 24 66 63 204 74 43 Explosive 61 | . 5 4 1 1 2 6 . . 2 2 . . 3 . . . . . . . . . . . . . . 32 . 3 Electromagnetic 72 | . . . . . . . . . . . . . . . 12 7 . . . . . . . 10 . 6 . 37 . . Robot Hit Streak 92 | 6 9 . . 5 13 20 6 9 26 12 13 . 7 7 . 7 . 5 21 12 6 2 6 7 10 12 12 48 92 15 Robot Miss Streak 9 | 2 4 . . 3 9 4 3 1 4 2 6 . . 4 . 5 . 6 2 4 5 1 4 5 2 2 2 3 2 1 Penetration Max 2 | . . . . . . . . . . . 1 . . 1 . . . . 2 2 1 . 1 1 1 2 1 1 1 1 Secondary Targets 22 | . 1 . . . 3 . . . 2 . . . . 2 . . . . 1 6 1 . . 1 2 3 . . . . Max Gunslinging Chain 2 | . 1 . . . 1 . . . 1 . . . . 1 . . . . 1 2 1 . . 1 1 1 . . . . Shots Hit Robots 1573 | 23 39 . . 4 126 61 14 13 134 32 15 . 4 117 . 16 . 18 82 114 37 5 25 57 20 93 37 260 161 66 Core Hits 949 | 6 23 . . 7 55 43 4 4 60 14 9 . 6 48 15 12 . 10 37 75 22 3 33 32 14 53 34 239 68 23 Critical Kills 47 | . . . . . . . . . . . . . . 1 . . . . . 4 . . 1 2 2 8 5 15 7 2 Critical Parts Destroyed 65 | . . . . . . 3 . . 1 1 1 . . 3 . 1 . 1 2 1 . 1 . 5 5 7 2 21 9 1 Critical Strikes 152 | 2 2 . . . 3 5 1 . 4 3 2 . . 7 . 1 . 2 5 7 . 1 1 8 7 15 7 49 16 4 Burn 23 | 2 2 . . . 3 2 1 . 3 2 1 . . 2 . . . 1 3 1 . . . . . . . . . . Meltdown 13 | . . . . . . . . . . . . . . . . . . . . . . . . . . 1 1 7 2 2 Destroy 112 | . . . . . . 1 . . . 1 1 . . 5 . 1 . 1 2 6 . 1 1 8 7 14 6 42 14 1 Blast 1 | . . . . . . . . . . . . . . . . . . . . . . . . . . . . . . 1 Smash 3 | . . . . . . 2 . . 1 . . . . . . . . . . . . . . . . . . . . . Melee Attacks 47 | . . . . . . 24 . . 16 7 . . . . . . . . . . . . . . . . . . . . Impact 34 | . . . . . . 11 . . 16 7 . . . . . . . . . . . . . . . . . . . . Slashing . | . . . . . . . . . . . . . . . . . . . . . . . . . . . . . . . Piercing 13 | . . . . . . 13 . . . . . . . . . . . . . . . . . . . . . . . . Sneak Attacks 5 | . . . . . . 3 . . 2 . . . . . . . . . . . . . . . . . . . . . Combat Hostiles . | . . . . . . . . . . . . . . . . . . . . . . . . . . . . . . . Follow-up Attacks . | . . . . . . . . . . . . . . . . . . . . . . . . . . . . . . . Damage Inflicted 69175 | 295 1030 . . 207 2557 2001 252 275 2966 923 359 . 243 2892 894 794 . 473 2137 3802 1189 110 3186 2172 811 4599 4309 20607 6019 4073 Guns 30317 | 295 459 . . 10 2356 1072 252 242 2467 582 359 . 71 2843 . 339 . 473 2137 3775 1189 110 704 1622 665 3059 118 2187 2497 434 Cannons 16431 | . . . . 70 . . . . . . . . . . . . . . . . . . . 33 81 816 1799 7784 3522 2326 Explosions 21245 | . 569 . . 127 156 616 . . 274 341 . . 172 . 894 413 . . . . . . 2481 441 . 702 2373 10395 . 1291 Melee 469 | . . . . . . 276 . . 193 . . . . . . . . . . . . . . . . . . . . . Ramming 713 | . 2 . . . 45 37 . 33 32 . . . . 49 . 42 . . . 27 . . 1 76 65 22 19 241 . 22 Kinetic 25424 | . . . . . 1285 672 152 142 1563 427 225 . 27 2319 . 243 . 241 1201 2948 1189 110 704 1622 665 3059 118 962 4057 1493 Thermal 24797 | 295 459 . . 80 1071 518 100 100 904 155 134 . 44 524 138 96 . 232 936 827 . . . 33 81 1022 4172 9647 1962 1267 Explosive 11546 | . 569 . . 127 156 498 . . 274 341 . . 172 . . . . . . . . . . . . . . 8118 . 1291 Electromagnetic 6226 | . . . . . . . . . . . . . . . 756 413 . . . . . . 2481 441 . 496 . 1639 . . Impact 381 | . . . . . . 188 . . 193 . . . . . . . . . . . . . . . . . . . . . Slashing . | . . . . . . . . . . . . . . . . . . . . . . . . . . . . . . . Piercing 88 | . . . . . . 88 . . . . . . . . . . . . . . . . . . . . . . . . Highest Corruption 28 | . . . 5 5 . 4 4 4 5 6 6 6 6 3 3 3 3 7 7 7 7 7 10 2 5 18 18 28 8 12 Average Corruption 5 | . . . 5 5 . 1 4 4 4 5 6 6 6 2 3 3 3 6 6 7 7 3 2 1 3 13 18 10 3 10 Corruption Purged 50 | . . . . . . . . . . . . . . 3 . . . . . . . 6 . . . . . 41 . . Corruption Blocked . | . . . . . . . . . . . . . . . . . . . . . . . . . . . . . . . Effects 482 | . . . . 23 . 8 16 1 27 23 16 2 13 26 11 20 1 20 26 45 13 2 2 8 11 40 32 58 23 15 Message Errors 112 | . . . . 5 . 3 4 . 6 4 6 1 4 11 2 . 1 6 4 11 2 . 2 1 4 11 9 8 5 2 Matter Fused 113 | . . . . 9 . 3 4 1 4 3 5 . 2 5 4 3 . 5 5 13 6 2 . 3 1 7 6 12 5 5 Heat Flow Errors 69 | . . . . 3 . . 3 . 6 2 2 1 2 3 2 3 . 3 6 8 . . . . 1 5 7 5 4 3 Energy Discharges 46 | . . . . 4 . . 1 . 2 5 . . 3 3 1 6 . 2 3 1 2 . . . 2 3 2 5 1 . Parts Rejected 13 | . . . . . . 1 . . 1 . . . . . . . . . . 2 1 . . . . . 2 4 . 2 Parts Fused 3 | . . . . . . . . . . . . . . 1 . . . . . . . . . 1 . . . 1 . . Data Loss (minor) 54 | . . . . 1 . . 3 . 2 3 1 . 1 2 . 4 . 3 4 4 1 . . 1 3 5 1 9 6 . Data Loss (major) 18 | . . . . 1 . . . . 2 2 . . 1 1 . 1 . . 1 1 . . . . . 3 2 3 . . Misfires 17 | . . . . . . . . . 2 1 1 . . . 1 2 . 1 . 3 1 . . 2 . . 1 . 1 1 Alerts 11 | . . . . . . 1 1 . . 2 1 . . . . 1 . . 1 1 . . . . . . . 2 1 . Misdirections 11 | . . . . . . . . . . . . . . . . . . . . . . . . . . 1 1 9 . . Weapon Failures 15 | . . . . . . . . . 2 1 . . . . 1 . . . 2 1 . . . . . 5 1 . . 2 Overload Shots 7 | . . . . . . . . . . . . . . . . . . . . . . . . . . . . 7 . . Overflow Damage 1669 | . 36 . . . . 180 . . 178 . . . 4 . . 14 . . . 3 . . 31 1 36 110 413 405 133 125 Projectiles 605 | . . . . . . . . . . . . . . . . . . . . . . . . . 11 36 111 314 133 . Explosions 691 | . 36 . . . . 23 . . 5 . . . 4 . . . . . . . . . 31 . . 74 302 91 . 125 Melee 373 | . . . . . . 157 . . 173 . . . . . . 14 . . . 3 . . . 1 25 . . . . . Knockbacks 17 | . . . . . . 1 . . . . . . . . . . . . . . . . . 1 1 . . . 10 4 Impact 3 | . . . . . . 1 . . . . . . . . . . . . . . . . . 1 1 . . . . . Kinetic 14 | . . . . . . . . . . . . . . . . . . . . . . . . . . . . . 10 4 Secondary . | . . . . . . . . . . . . . . . . . . . . . . . . . . . . . . . Self-Inflicted Damage 1927 | . 40 44 . 23 10 37 . . . . . . 22 . 11 18 . . . . . . 104 26 . 93 . 1499 . . Shots 48 | . 3 2 . 1 1 2 . . . . . . 1 . 1 3 . . . . . . 1 1 . 5 . 27 . . Rammed 1 | . 1 . . . . . . . . . . . . . . . . . . . . . . . . . . . . . Targets Rammed 53 | . 1 . . . 4 3 . 5 5 . . . . 5 . 2 . . . 1 . . 1 4 1 1 2 17 . 1 Kicked 52 | . . . . . 4 3 . 5 5 . . . . 5 . 2 . . . 1 . . 1 4 1 1 2 17 . 1 Crushed . | . . . . . . . . . . . . . . . . . . . . . . . . . . . . . . . Highest Temperature 405 | 340 306 . 20 254 303 155 228 136 255 227 273 274 245 384 239 212 . 405 346 268 30 15 78 233 45 290 383 249 223 257 Average Temperature 85 | 149 88 . 10 98 75 42 76 56 73 57 96 145 120 77 92 51 . 93 73 58 14 10 21 84 45 76 126 55 146 186 Received Heat Transfer 3915 | . 150 . 60 6 333 90 . 144 396 157 52 . . 228 105 54 . . 193 183 . . 96 141 54 54 180 952 141 146 Thermoelectric Energy+ 2978 | . . . . . . . . . . . . . . . . . . . . . . . . . . . . . 2024 954 Effects 16 | 1 1 . . . . . . . 2 . . . . 1 . . . 1 . . . . . . . . 2 . 5 3 Shutdowns 3 | . . . . . . . . . . . . . . 1 . . . 1 . . . . . . . . 1 . . . Energy Bleed 4 | . 1 . . . . . . . . . . . . . . . . . . . . . . . . . 1 . 2 . Interference 9 | 1 . . . . . . . . 2 . . . . . . . . . . . . . . . . . . . 3 3 Siege Activations . | . . . . . . . . . . . . . . . . . . . . . . . . . . . . . . . Martial Activations . | . . . . . . . . . . . . . . . . . . . . . . . . . . . . . . . Shielding Activations 1 | . . . . . . . . . . . . . . . . . . . . . . . . . . . . . . 1 Total Turns 44 | . . . . . . . . . . . . . . . . . . . . . . . . . . . . . . 44 Longest Duration 44 | . . . . . . . . . . . . . . . . . . . . . . . . . . . . . . 44 Robots Disrupted 1 | . . . . . . . . . . . . . . . . . . . . . . . . . . . . 1 . . Combat Hostiles 1 | . . . . . . . . . . . . . . . . . . . . . . . . . . . . 1 . . Robots Corrupted 31 | . . . . . . 2 . . 1 . . . . . 3 3 . . . 1 . . 4 4 1 2 . 10 . . Combat Hostiles 23 | . . . . . . . . . . . . . . . 3 2 . . . . . . 4 3 . 1 . 10 . . Parts Fried 55 | . . . . . . 2 . . 1 . . . . . 1 6 . . . 4 . . 10 6 . 6 . 19 . . Impact Corruptions 17 | . . . . . . 8 . . 4 . . . . . . 1 . . . 1 . . . 1 2 . . . . . Robots Melted 16 | . . . . . . . . . . . . . . . . . . . . . . . . . . 1 1 7 4 3 Combat Hostiles 16 | . . . . . . . . . . . . . . . . . . . . . . . . . . 1 1 7 4 3 Parts Melted 51 | 2 2 . . . 6 . . . 5 . 1 . . . . . . 1 6 . . . . . . 3 5 9 8 3 Heat Transferred 28628 | 917 1362 . . 162 2282 951 259 185 2036 550 400 . 100 1307 50 148 . 370 1480 1220 . . . 37 74 866 3828 7203 2072 769 Parts Sabotaged . | . . . . . . . . . . . . . . . . . . . . . . . . . . . . . . . Parts Stolen . | . . . . . . . . . . . . . . . . . . . . . . . . . . . . . . . Parts Stripped . | . . . . . . . . . . . . . . . . . . . . . . . . . . . . . . . Power Chain Reactions 5 | . . . . . . . . . . . . . . . 1 . . . . . . . . . . 2 . 2 . . Alert | -11 -10 -10 -10 -9 -8 -7 -7 -7 -6 -6 -6 -6 -5 -5 -5 -5 -5 -4 -4 -4 -4 -4 -4 -3 -3 -2 -2 -2 -1 -1 ------- Run | Yrd Mat Min Exi Min Mat Fac Low Low Fac Low Low Dat Pro Fac Upp Upp Zhi Pro Fac Ext Cet Arc Hub Res Qua Res Tes Frg Acc Com Maximum Alert Level 5 | . . . . . 2 2 . . . . . . . 1 . . . . . 4 3 1 3 2 . 1 2 5 5 4 Low Security (%) 61 | 100 100 100 . 100 56 82 . . 100 . . . . 87 . . . . 100 47 . . 52 61 100 69 24 4 . . Level 1 11 | . . . . . 27 3 . . . . . . . 12 . . . . . 14 . 100 22 . . 30 16 30 . . Level 2 10 | . . . . . 16 14 . . . . . . . . . . . . . 20 74 . . 38 . . 58 14 . . Level 3 4 | . . . . . . . . . . . . . . . . . . . . 13 25 . 24 . . . . 13 4 48 Level 4 8 | . . . . . . . . . . . . . . . . . . . . 3 . . . . . . . 13 82 51 Level 5 4 | . . . . . . . . . . . . . . . . . . . . . . . . . . . . 23 13 . High Security . | . . . . . . . . . . . . . . . . . . . . . . . . . . . . . . . Max Security . | . . . . . . . . . . . . . . . . . . . . . . . . . . . . . . . Peak Influence 1931 | 5 132 8 . 97 495 464 . . 173 . . . . 300 . . . . 127 1232 744 311 1033 581 84 339 542 1931 1621 1222 Initial 1156 | . 3 . . . . 219 . . . . . . . 300 . . . . . 51 684 282 78 528 69 38 84 304 1156 1017 Average 337 | 1 40 1 . 10 179 150 . . 46 . . . . 75 . . . . 48 348 659 270 367 227 47 154 369 908 1271 1115 Influence Increases 14678 | 25 417 16 . 137 949 791 50 . 712 120 164 . 67 825 180 275 . 90 424 1675 352 63 1100 441 254 755 816 2689 978 313 Destroy 0b10 Robot/C 7340 | . 240 . . 100 620 260 20 . 400 80 100 . 40 280 160 140 . 60 200 740 160 20 260 240 100 380 340 1780 420 200 Destroy 0b10 Robot/NC 650 | 25 30 . . 10 30 50 5 . 40 . . . 10 40 . . . 5 25 60 10 5 60 30 15 75 60 50 15 . Destroy Leader 1246 | . 44 . . 20 174 86 10 . 134 10 30 . 10 76 20 . . 10 46 66 . . 44 62 12 72 50 130 120 20 Allied During Kill 1022 | . . . . . 42 . . . . . 34 . 7 . . . . . . 718 154 19 25 . . . . 23 . . Trap Triggered on 0b10 20 | . . . . . . . . . . . . . . 10 . . . . 10 . . . . . . . . . . . Successful Hack 510 | . 49 . . . 9 60 . . 29 . . . . 42 . . . . . 16 . . . 61 22 84 45 21 72 . Select Force Hacks 160 | . 30 . . . . . . . . . . . . . . . . . 30 . . . 100 . . . . . . . Disable Machine 1095 | . . . . . . 75 . . 30 . . . . 15 . . . . 75 15 . 15 255 30 75 15 105 330 60 . Anti-Garrison Action 150 | . . . . . . 150 . . . . . . . . . . . . . . . . . . . . . . . . Destroy Structure 1600 | . 24 16 . 7 14 65 . . 34 . . . . 32 . . . . 38 60 28 4 326 18 30 129 171 265 246 93 Advance Influence 300 | . . . . . . . . . . . . . . 300 . . . . . . . . . . . . . . . . Lose Combat Pursuer 585 | . . . . . 60 45 15 . 45 30 . . . 30 . 135 . 15 . . . . 30 . . . 45 90 45 . Influence Decreases 13608 | 20 422 16 . 137 466 818 455 51 581 251 164 . 67 721 200 280 79 90 319 556 870 544 317 1326 308 673 425 1302 1317 833 Entered New Map 4013 | . 2 . . . . 264 169 11 . 50 . . . . 40 17 79 . . 54 540 424 147 480 54 31 67 238 773 573 Time Decay 7544 | 20 390 16 . 137 420 508 286 40 374 191 164 . 42 574 160 253 . 90 299 482 190 80 80 386 254 422 318 704 514 150 Search Patrol Dispatched 100 | . . . . . . . . . . . . . . 100 . . . . . . . . . . . . . . . . Lost Part 682 | . 30 . . . 15 10 . . 60 10 . . . 47 . 10 . . 20 . . . 30 10 . 70 40 190 30 110 Lost Ally 336 | . . . . . 31 . . . . . . . 25 . . . . . . 20 140 40 60 . . . . 20 . . Purge Threat 933 | . . . . . . 36 . . 147 . . . . . . . . . . . . . . 450 . 150 . 150 . . Squads Dispatched 93 | . 1 . . 1 7 6 . 1 10 . . . . 12 . . . . 5 1 . . 3 5 2 7 5 16 10 1 Investigation 14 | . 1 . . 1 1 . . . 1 . . . . 2 . . . . 1 . . . 2 2 . 1 . 1 1 . Extermination 30 | . . . . . . 2 . . 4 . . . . 4 . . . . 2 . . . . 1 1 5 2 6 3 . Reinforcement 23 | . . . . . 5 1 . . 2 . . . . 1 . . . . . 1 . . 1 2 1 1 3 3 2 . Assault 18 | . . . . . . 2 . 1 . . . . . 2 . . . . 2 . . . . . . . . 6 4 1 Garrison 8 | . . . . . 1 1 . . 3 . . . . 3 . . . . . . . . . . . . . . . . Intercept . | . . . . . . . . . . . . . . . . . . . . . . . . . . . . . . . Searches Triggered 1 | . . . . . . . . . . . . . . 1 . . . . . . . . . . . . . . . . Unchained Authorized 1 | . . . . . . . . . . . . . . . . . . . . . . . . . . . . . 1 . Data Miner Redirects 2 | . . . . . . . . . . . . . . 1 . . . . . . . . . . . . . . . 1 Construction Impeded 6 | . . . . . . . . . 1 . . . . 1 . . . . . . . . . . . 1 2 1 . . Haulers Reinforced 1 | . . . . . . 1 . . . . . . . . . . . . . . . . . . . . . . . . Active Scanning Responses . | . . . . . . . . . . . . . . . . . . . . . . . . . . . . . . . Cargo Convoy Interrupts . | . . . . . . . . . . . . . . . . . . . . . . . . . . . . . . . Stealth | -11 -10 -10 -10 -9 -8 -7 -7 -7 -6 -6 -6 -6 -5 -5 -5 -5 -5 -4 -4 -4 -4 -4 -4 -3 -3 -2 -2 -2 -1 -1 --------- Run | Yrd Mat Min Exi Min Mat Fac Low Low Fac Low Low Dat Pro Fac Upp Upp Zhi Pro Fac Ext Cet Arc Hub Res Qua Res Tes Frg Acc Com Distress Signals 24 | . 1 1 . . 3 2 . . 2 . . . . 1 . . . . 1 . 2 1 . 3 . 2 2 . 1 2 Communications Jammed 33 | . . . . . . . . . . . . . . . . . . . 2 15 . . 2 14 . . . . . . Distress Signals 32 | . . . . . . . . . . . . . . . . . . . 1 15 . . 2 14 . . . . . . Times Spotted 609 | . 22 . 7 5 42 27 2 13 28 7 5 . 4 25 8 14 . 4 12 33 10 . 16 34 8 41 29 143 43 27 Peak Tracking Total 17 | . 4 . 9 4 4 8 1 11 4 4 3 . 2 5 4 5 . 2 2 6 5 . 7 6 3 7 6 9 8 17 Tactical Retreats 22 | . . . . . 2 2 1 . 1 1 . . . 1 . 4 . 1 . . . . 1 1 . 2 2 2 1 . ECM-based Alert Blocks 11 | . . . . . . . . . . . . . . . . . . . . . . . . 3 . 8 . . . . Traps | -11 -10 -10 -10 -9 -8 -7 -7 -7 -6 -6 -6 -6 -5 -5 -5 -5 -5 -4 -4 -4 -4 -4 -4 -3 -3 -2 -2 -2 -1 -1 ------- Run | Yrd Mat Min Exi Min Mat Fac Low Low Fac Low Low Dat Pro Fac Upp Upp Zhi Pro Fac Ext Cet Arc Hub Res Qua Res Tes Frg Acc Com Traps Triggered 27 | . 1 . . . 1 2 . . 1 . . . . 2 . . . . 3 1 . . . . . 5 . 10 1 . Indirectly 2 | . . . . . . . . . . . . . . . . . . . . . . . . . . . . 2 . . Trap Hack Attempts . | . . . . . . . . . . . . . . . . . . . . . . . . . . . . . . . Triggered . | . . . . . . . . . . . . . . . . . . . . . . . . . . . . . . . Disarmed . | . . . . . . . . . . . . . . . . . . . . . . . . . . . . . . . Reprogrammed . | . . . . . . . . . . . . . . . . . . . . . . . . . . . . . . . Reused 2 | . . . . . . . . . . . . . . 1 . . . . 1 . . . . . . . . . . . Traps Extracted . | . . . . . . . . . . . . . . . . . . . . . . . . . . . . . . . Installed 6 | . . . . . . . . . . . . . . 2 . . . . 4 . . . . . . . . . . . Triggered 2 | . . . . . . . . . . . . . . 1 . . . . 1 . . . . . . . . . . . Most Traps Carried 7 | . . . . . . . 2 2 2 2 2 2 2 2 . . . 7 7 3 . . . . . . . . . . Machines | -11 -10 -10 -10 -9 -8 -7 -7 -7 -6 -6 -6 -6 -5 -5 -5 -5 -5 -4 -4 -4 -4 -4 -4 -3 -3 -2 -2 -2 -1 -1 ---------- Run | Yrd Mat Min Exi Min Mat Fac Low Low Fac Low Low Dat Pro Fac Upp Upp Zhi Pro Fac Ext Cet Arc Hub Res Qua Res Tes Frg Acc Com Machines Disabled 92 | . . . 3 . . 6 . . 2 1 1 . . 1 . 2 . . 5 1 . 1 17 2 5 1 7 33 4 . Max in Single Turn 15 | . . . 2 . . 3 . . 1 1 1 . . 1 . 1 . . 3 1 . 1 15 1 1 1 1 3 1 . Garrison Access 5 | . . . . . 1 1 . . . . . . . 1 . . . . 1 . . . . . . . . 1 . . Network Hub 3 | . . . . . . . . . . . . . . . . . . . . . . . 3 . . . . . . . Machines Repaired . | . . . . . . . . . . . . . . . . . . . . . . . . . . . . . . . Machines Dismantled . | . . . . . . . . . . . . . . . . . . . . . . . . . . . . . . . Machines Sabotaged 2 | . . . . . . . . . . . . . . . . . . . . . . . 2 . . . . . . . Overloaded Fab Kills . | . . . . . . . . . . . . . . . . . . . . . . . . . . . . . . . Hacking | -11 -10 -10 -10 -9 -8 -7 -7 -7 -6 -6 -6 -6 -5 -5 -5 -5 -5 -4 -4 -4 -4 -4 -4 -3 -3 -2 -2 -2 -1 -1 --------- Run | Yrd Mat Min Exi Min Mat Fac Low Low Fac Low Low Dat Pro Fac Upp Upp Zhi Pro Fac Ext Cet Arc Hub Res Qua Res Tes Frg Acc Com Machines Accessed 89 | . 8 . 2 1 6 12 1 . 8 . . 3 . 7 1 1 4 . 3 4 . . 2 4 1 7 3 5 6 . Terminals 55 | . 7 . . . 4 9 . . 5 . . . . 2 . . . . 2 4 . . 2 2 1 5 3 4 5 . Fabricators 4 | . . . . . . . . . 2 . . . . 2 . . . . . . . . . . . . . . . . Repair Stations 2 | . . . . . . . . . . . . . . 1 . . . . . . . . . . . 1 . . . . Recycling Units 2 | . 1 . . . . . . . . . . . . . . . . . 1 . . . . . . . . . . . Scanalyzers 9 | . . . . . 1 2 . . 1 . . . . 1 . . . . . . . . . 2 . 1 . . 1 . Garrison Access 4 | . . . . . 1 1 . . . . . . . 1 . . . . . . . . . . . . . 1 . . Total Hacks 267 | . 27 . 2 1 16 28 1 . 18 . . 24 . 14 1 1 17 . 4 12 . . 7 23 7 30 9 12 13 . Successful 150 | . 15 . 2 1 9 10 1 . 9 . . 24 . 5 1 1 17 . 2 6 . . 4 15 2 11 4 8 3 . Failed 115 | . 12 . . . 7 18 . . 9 . . . . 9 . . . . 2 6 . . 3 7 5 18 5 4 10 . Catastrophic 20 | . . . . . 2 4 . . 1 . . . . 1 . . . . 2 . . . . 2 . 3 . 1 4 . Database Lockouts 2 | . . . . . . . . . . . . . . . . . . . . . . . . 1 . 1 . . . . Manual 89 | . 26 . 2 . 6 10 . . 6 . . . . . . . . . 2 2 1 . 7 5 6 7 3 2 4 . Terminals 171 | . 26 . . . 10 24 . . 14 . . . . 4 . . . . 3 12 . . 7 14 7 20 9 9 12 . Fabricators 6 | . . . . . . . . . 2 . . . . 4 . . . . . . . . . . . . . . . . Repair Stations 8 | . . . . . . . . . . . . . . 2 . . . . . . . . . . . 6 . . . . Recycling Units 2 | . 1 . . . . . . . . . . . . . . . . . 1 . . . . . . . . . . . Scanalyzers 25 | . . . . . 3 3 . . 2 . . . . 3 . . . . . . . . . 9 . 4 . . 1 . Garrison Access 8 | . . . . . 3 1 . . . . . . . 1 . . . . . . . . . . . . . 3 . . Terminal Hacks 96 | . 6 . 2 1 3 6 1 . 3 . . 24 . 1 1 1 17 . 1 5 . . 1 9 . 5 3 6 . . Record 14 | . . . 1 . . . . . . . . 6 . . . . 5 . . . . . . . . 1 . 1 . . Part Schematic 16 | . . . . . . . . . . . . 11 . . . . 4 . . 1 . . . . . . . . . . Robot Schematic 4 | . . . . . . . . . . . . 4 . . . . . . . . . . . . . . . . . . Robot Analysis 4 | . . . . . . . . . . . . . . . . . 4 . . . . . . . . . . . . . Prototype ID Bank 18 | . 4 . . . 2 2 . . . . . 3 . . . . 4 . . 2 . . . 1 . . . . . . Open Door 5 | . . . . 1 . . 1 . . . . . . . 1 1 . . . . . . . . . . 1 . . . Level Access Points 2 | . . . . . . . . . . . . . . . . . . . . . . . 1 . . . 1 . . . Branch Access Points 3 | . . . . . . 1 . . . . . . . . . . . . . . . . . 1 . 1 . . . . Terminal Index 3 | . 1 . . . . 1 . . . . . . . . . . . . . . . . . 1 . . . . . . Alert Level 10 | . . . . . 1 . . . 1 . . . . 1 . . . . 1 1 . . . 2 . 1 . 2 . . Unreport Threat 7 | . . . . . . 1 . . 1 . . . . . . . . . . . . . . 3 . 1 . 1 . . Locate Traps 1 | . 1 . . . . . . . . . . . . . . . . . . . . . . . . . . . . . Recall Reinforcements 1 | . . . . . . . . . . . . . . . . . . . . . . . . . . 1 . . . . Hauler Manifests 1 | . . . . . . . . . 1 . . . . . . . . . . . . . . . . . . . . . Registered Components 1 | . . . . . . 1 . . . . . . . . . . . . . . . . . . . . . . . . Zone Layout 4 | . . . . . . . . . . . . . . . . . . . . 1 . . . 1 . . 1 1 . . Proto ID Catalog 2 | . . . 1 . . . . . . . . . . . . . . . . . . . . . . . . 1 . . Fabricator Hacks 3 | . . . . . . . . . 1 . . . . 2 . . . . . . . . . . . . . . . . Network Status 1 | . . . . . . . . . 1 . . . . . . . . . . . . . . . . . . . . . Load Schematic 1 | . . . . . . . . . . . . . . 1 . . . . . . . . . . . . . . . . Build 1 | . . . . . . . . . . . . . . 1 . . . . . . . . . . . . . . . . Repair Station Hacks 4 | . . . . . . . . . . . . . . 1 . . . . . . . . . . . 3 . . . . Scan Component 3 | . . . . . . . . . . . . . . 1 . . . . . . . . . . . 2 . . . . Repair 1 | . . . . . . . . . . . . . . . . . . . . . . . . . . 1 . . . . Recycling Unit Hacks . | . . . . . . . . . . . . . . . . . . . . . . . . . . . . . . . Scanalyzer 15 | . . . . . 3 2 . . 2 . . . . 1 . . . . . . . . . 5 . 1 . . 1 . Retrieve Study 15 | . . . . . 3 2 . . 2 . . . . 1 . . . . . . . . . 5 . 1 . . 1 . Garrison Access Hacks 2 | . . . . . 1 . . . . . . . . . . . . . . . . . . . . . . 1 . . Seal Access 2 | . . . . . 1 . . . . . . . . . . . . . . . . . . . . . . 1 . . Unauthorized Hacks 29 | . 8 . . . 2 2 . . 3 . . . . . . . . . 1 1 . . 3 1 2 2 1 1 2 . Terminals 27 | . 7 . . . 2 2 . . 3 . . . . . . . . . . 1 . . 3 1 2 2 1 1 2 . Botnet 15 | . 2 . . . 1 2 . . 2 . . . . . . . . . . . . . 1 1 1 1 1 1 2 . Operators 4 | . . . . . . . . . 1 . . . . . . . . . . 1 . . . . 1 1 . . . . Skim 6 | . 5 . . . 1 . . . . . . . . . . . . . . . . . . . . . . . . . Sabotage 2 | . . . . . . . . . . . . . . . . . . . . . . . 2 . . . . . . . Fabricators . | . . . . . . . . . . . . . . . . . . . . . . . . . . . . . . . Repair Stations . | . . . . . . . . . . . . . . . . . . . . . . . . . . . . . . . Recycling Units 2 | . 1 . . . . . . . . . . . . . . . . . 1 . . . . . . . . . . . Tunnel 2 | . 1 . . . . . . . . . . . . . . . . . 1 . . . . . . . . . . . Scanalyzers . | . . . . . . . . . . . . . . . . . . . . . . . . . . . . . . . Garrison Access . | . . . . . . . . . . . . . . . . . . . . . . . . . . . . . . . Data Cores Recovered 1 | . . . . . . . . . 1 . . . . . . . . . . . . . . . . . . . . . Used 1 | . . . . . . . . . 1 . . . . . . . . . . . . . . . . . . . . . Hacking Detections 66 | . 7 . . . 5 12 . . 6 . . . . 7 . . . . 2 4 . . 2 4 1 5 2 3 6 . Full Trace Events 3 | . . . . . . . . . 1 . . . . 2 . . . . . . . . . . . . . . . . Feedback Events . | . . . . . . . . . . . . . . . . . . . . . . . . . . . . . . . Feedback Blocked . | . . . . . . . . . . . . . . . . . . . . . . . . . . . . . . . Robot Schematics Acquired 6 | . . . . . . . . . . . . 4 . . . . . . . . . . . . . . 1 1 . . Robots Built . | . . . . . . . . . . . . . . . . . . . . . . . . . . . . . . . Authchips . | . . . . . . . . . . . . . . . . . . . . . . . . . . . . . . . Time . | . . . . . . . . . . . . . . . . . . . . . . . . . . . . . . . Total Robot Build Rating . | . . . . . . . . . . . . . . . . . . . . . . . . . . . . . . . Part Schematics Acquired 23 | . . . . . . . . . . . . 11 . . . . 4 . . 1 . . . . . . . 7 . . Parts Built 1 | . . . . . . . . . . . . . . 1 . . . . . . . . . . . . . . . . Authchips . | . . . . . . . . . . . . . . . . . . . . . . . . . . . . . . . Time 169 | . . . . . . . . . . . . . . 169 . . . . . . . . . . . . . . . . Total Part Build Rating 6 | . . . . . . . . . . . . . . 6 . . . . . . . . . . . . . . . . Part Studies Acquired 15 | . . . . . 3 2 . . 2 . . . . 1 . . . . . . . . . 5 . 1 . . 1 . Parts Repaired 1 | . . . . . . . . . . . . . . . . . . . . . . . . . . 1 . . . . Time 54 | . . . . . . . . . . . . . . . . . . . . . . . . . . 54 . . . . Parts Recycled . | . . . . . . . . . . . . . . . . . . . . . . . . . . . . . . . Recycled Matter . | . . . . . . . . . . . . . . . . . . . . . . . . . . . . . . . Retrieved Matter . | . . . . . . . . . . . . . . . . . . . . . . . . . . . . . . . Retrieved Components . | . . . . . . . . . . . . . . . . . . . . . . . . . . . . . . . Parts Scanalyzed . | . . . . . . . . . . . . . . . . . . . . . . . . . . . . . . . Part Schematics Acquired . | . . . . . . . . . . . . . . . . . . . . . . . . . . . . . . . Parts Damaged . | . . . . . . . . . . . . . . . . . . . . . . . . . . . . . . . Bothacking | -11 -10 -10 -10 -9 -8 -7 -7 -7 -6 -6 -6 -6 -5 -5 -5 -5 -5 -4 -4 -4 -4 -4 -4 -3 -3 -2 -2 -2 -1 -1 ------------ Run | Yrd Mat Min Exi Min Mat Fac Low Low Fac Low Low Dat Pro Fac Upp Upp Zhi Pro Fac Ext Cet Arc Hub Res Qua Res Tes Frg Acc Com Used RIF Installer . | . . . . . . . . . . . . . . . . . . . . . . . . . . . . . . . Robots Hacked . | . . . . . . . . . . . . . . . . . . . . . . . . . . . . . . . Non-combat . | . . . . . . . . . . . . . . . . . . . . . . . . . . . . . . . Combat . | . . . . . . . . . . . . . . . . . . . . . . . . . . . . . . . Robot Hacks Applied . | . . . . . . . . . . . . . . . . . . . . . . . . . . . . . . . Relay Couplers Released 1 | . . . . . . 1 . . . . . . . . . . . . . . . . . . . . . . . . Machine Destruction 1 | . . . . . . 1 . . . . . . . . . . . . . . . . . . . . . . . . Fabnet Peak Effective % . | . . . . . . . . . . . . . . . . . . . . . . . . . . . . . . . Robots Rewired 15 | . . . . . . . . . . . 3 . . . . . . . . 11 . . . . . . . 1 . . Allies Hacked 1 | . . . . . . . . . . . 1 . . . . . . . . . . . . . . . . . . . Hacks Repelled . | . . . . . . . . . . . . . . . . . . . . . . . . . . . . . . . Allies | -11 -10 -10 -10 -9 -8 -7 -7 -7 -6 -6 -6 -6 -5 -5 -5 -5 -5 -4 -4 -4 -4 -4 -4 -3 -3 -2 -2 -2 -1 -1 -------- Run | Yrd Mat Min Exi Min Mat Fac Low Low Fac Low Low Dat Pro Fac Upp Upp Zhi Pro Fac Ext Cet Arc Hub Res Qua Res Tes Frg Acc Com Total Allies 31 | . . . . 3 . . . . . . 3 . . . . . . . . 19 5 . . . . . . 1 . . Largest Group 15 | . . . . 3 3 . . . . . 3 3 3 . . . . . . 15 15 11 5 . . . . 1 . . Highest-Rated Group 753 | . . . . 40 40 . . . . . 87 73 73 . . . . . . 753 734 718 335 . . . . 120 . . Highest-Rated Ally 159 | . . . . 16 16 . . . . . 29 25 25 . . . . . . 159 134 96 96 . . . . 120 . . Total Orders . | . . . . . . . . . . . . . . . . . . . . . . . . . . . . . . . Ally Attacks 288 | . . . . . 37 . . . . . 22 . 4 . . . . . . 131 49 7 36 . . . . 2 . . Total Damage 7024 | . . . . . 429 . . . . . 306 . 57 . . . . . . 3502 1418 175 1077 . . . . 60 . . Kills 45 | . . . . . 6 . . . . . 2 . . . . . . . . 24 8 1 3 . . . . 1 . . Allies Corrupted 1 | . . . . . . . . . . . . . . . . . . . . . . . . . . . . 1 . . Allies Melted . | . . . . . . . . . . . . . . . . . . . . . . . . . . . . . . . Intel | -11 -10 -10 -10 -9 -8 -7 -7 -7 -6 -6 -6 -6 -5 -5 -5 -5 -5 -4 -4 -4 -4 -4 -4 -3 -3 -2 -2 -2 -1 -1 ------- Run | Yrd Mat Min Exi Min Mat Fac Low Low Fac Low Low Dat Pro Fac Upp Upp Zhi Pro Fac Ext Cet Arc Hub Res Qua Res Tes Frg Acc Com Active Infowar (turns) 27177 | 64 1733 113 1609 637 899 1354 623 96 1709 847 762 105 545 2325 690 812 181 670 1073 1248 395 176 170 1207 544 1222 709 3073 1399 187 Optics 9639 | . . . . . . . . . . . . . . . . . . . . 594 395 176 170 1207 544 1222 709 3073 1399 150 Sensors 14196 | . . . . 1 . . . . 1353 786 706 105 522 2107 643 641 176 588 770 356 80 19 48 972 506 978 383 1164 1290 2 Structural 1354 | . . . . . . . . . . . . . . . . . . . . . . . . 263 169 393 375 154 . . Seismic 8041 | 64 1733 113 1609 636 899 1354 623 96 243 . . . . . . . . . . . . . . . . 671 . . . . T.N.C. 9707 | . . . . . . . . . 1045 847 762 105 545 2325 690 812 181 670 1073 652 . . . . . . . . . . Triangulation 366 | . . . . . . . . . . . . . . . . . . . . . . . . . . . . . 289 77 Cloaking 821 | . . . . . . . . . . . . . . . . . . . . . . . . . . . . 560 261 . Jamming 2754 | . . . . . . . . . . . . . . . . . . . 1061 1248 4 . 121 320 . . . . . . ECM 1884 | . . . . . . . . . . . . . . . . . . . . . . . . 822 91 790 181 . . . Robot Analysis Total 4 | . . . . . . . . . . . . . . . . . 4 . . . . . . . . . . . . . Derelict Logs Recovered 14 | . . . . 2 . . 2 . . 1 1 . 2 . 2 3 . 1 . . . . . . . . . . . . Drone Launches . | . . . . . . . . . . . . . . . . . . . . . . . . . . . . . . . Drone Recoveries . | . . . . . . . . . . . . . . . . . . . . . . . . . . . . . . . Exploration | -11 -10 -10 -10 -9 -8 -7 -7 -7 -6 -6 -6 -6 -5 -5 -5 -5 -5 -4 -4 -4 -4 -4 -4 -3 -3 -2 -2 -2 -1 -1 ------------- Run | Yrd Mat Min Exi Min Mat Fac Low Low Fac Low Low Dat Pro Fac Upp Upp Zhi Pro Fac Ext Cet Arc Hub Res Qua Res Tes Frg Acc Com Turns Passed 28729 | 203 1849 113 1610 984 1389 1429 628 121 1933 847 762 105 545 2325 690 812 181 670 1073 1248 395 176 170 1207 544 1222 709 3073 1415 301 Spaces Moved 16773 | 72 691 43 664 295 568 954 519 88 1374 684 594 89 447 1403 539 580 149 306 693 771 165 49 86 855 374 695 363 1617 912 134 Core 2 | 2 . . . . . . . . . . . . . . . . . . . . . . . . . . . . . . Treads 1745 | 70 691 43 664 277 . . . . . . . . . . . . . . . . . . . . . . . . . . Legs 14244 | . . . . 18 568 172 519 88 1374 684 594 89 447 1403 539 580 149 306 693 771 165 49 86 855 374 695 363 1617 912 134 Wheels 782 | . . . . . . 782 . . . . . . . . . . . . . . . . . . . . . . . . Hover . | . . . . . . . . . . . . . . . . . . . . . . . . . . . . . . . Flight . | . . . . . . . . . . . . . . . . . . . . . . . . . . . . . . . Fastest Speed 50 | 50 160 240 240 260 115 108 114 114 105 105 112 112 112 108 108 108 108 174 105 105 108 108 108 110 110 107 105 105 110 110 Average Speed 128 | 156 198 240 240 316 179 122 114 114 109 109 112 112 112 116 108 108 109 174 107 106 108 108 112 111 110 109 113 112 114 110 Slowest Speed 320 | 160 240 240 320 320 192 130 116 116 175 112 177 112 112 180 174 108 174 174 175 108 108 108 114 114 110 110 177 176 215 110 Overloaded Moves . | . . . . . . . . . . . . . . . . . . . . . . . . . . . . . . . Propulsion Burnouts . | . . . . . . . . . . . . . . . . . . . . . . . . . . . . . . . Robots Hopped . | . . . . . . . . . . . . . . . . . . . . . . . . . . . . . . . Potential Cave-ins 41 | . . 2 . . . . . . . . . . . . . . . . . . . . . . . 5 . 34 . . Cave-ins Triggered . | . . . . . . . . . . . . . . . . . . . . . . . . . . . . . . . Teleports 8 | . . . . . . . . . . . . . . . . . . . . . . . . . . . . 7 1 . Exploration Rate (%) 49 | 3 80 14 91 60 67 32 67 13 29 68 82 68 65 34 64 79 60 47 19 86 60 75 27 30 45 30 52 40 35 10 Regions Visited 30 Branch Regions 21 Pre-discovered Areas 12 | . 3 . 1 1 . . . . . . . 1 . . . 1 3 1 1 . . . . . . . . . . . Known Exits Taken 24 | . . 1 1 . . 1 . . 1 1 1 1 1 1 1 1 1 1 1 1 1 1 1 1 1 1 1 1 1 . Unknown Exits Taken 6 | 1 1 . . 1 1 . 1 1 . . . . . . . . . . . . . . . . . . . . . . Scrap Searched 19 | . . 1 . 1 . . 4 . . 3 . . 4 . 2 3 . 1 . . . . . . . . . . . . Spaces Dug 131 | . . . . . . 14 . . 12 7 . . . 7 1 1 . 1 11 . . . 1 5 8 27 12 12 8 4 Terrain Destroyed 1015 | . 28 35 4 7 12 102 . . 36 40 . . 36 24 12 1 . 3 19 42 10 5 167 10 21 61 60 123 84 73 Melee 33 | . . . . . . 14 . . 12 7 . . . . . . . . . . . . . . . . . . . . Projectile 351 | . . . . . 1 . . . . 3 . . . 24 6 1 . 3 19 42 10 5 9 9 21 56 26 32 63 21 AOE 629 | . 28 35 4 7 11 88 . . 24 30 . . 36 . 6 . . . . . . . 158 . . 5 34 90 21 52 Terrain Rammed . | . . . . . . . . . . . . . . . . . . . . . . . . . . . . . . . Walls Destroyed . | . . . . . . . . . . . . . . . . . . . . . . . . . . . . . . . Machines Disabled . | . . . . . . . . . . . . . . . . . . . . . . . . . . . . . . . Actions | -11 -10 -10 -10 -9 -8 -7 -7 -7 -6 -6 -6 -6 -5 -5 -5 -5 -5 -4 -4 -4 -4 -4 -4 -3 -3 -2 -2 -2 -1 -1 --------- Run | Yrd Mat Min Exi Min Mat Fac Low Low Fac Low Low Dat Pro Fac Upp Upp Zhi Pro Fac Ext Cet Arc Hub Res Qua Res Tes Frg Acc Com Total 21860 | 121 1098 49 674 338 816 1118 543 100 1672 735 663 94 483 1951 622 738 169 413 919 1085 344 165 124 1031 461 1001 569 2423 1126 215 Wait 2091 | 19 345 2 . 14 46 42 5 2 113 2 6 . 10 363 50 128 1 81 78 140 135 110 . 20 4 131 59 132 52 1 Move 16745 | 71 690 42 663 294 567 953 518 87 1373 683 593 88 446 1402 538 579 148 305 692 770 164 48 86 855 373 694 362 1617 911 133 Hop . | . . . . . . . . . . . . . . . . . . . . . . . . . . . . . . . Pick Up 283 | 5 13 . 4 7 32 6 4 . 17 5 . . 2 23 1 2 3 2 19 8 4 . 1 20 8 13 9 47 25 3 Fast Attach 173 | 6 1 . . 2 2 7 . . 9 1 . 3 . 16 2 2 6 . 8 4 5 2 4 17 8 14 14 31 7 2 Attach 115 | 1 2 . 1 4 5 5 . . 11 2 . . . 6 . 2 1 . 3 2 . . 1 5 2 10 3 28 9 12 Detach 48 | . . . . 2 1 2 . . 2 . . . . 1 . . 1 . 3 1 . . . 3 1 2 4 20 1 4 Swap 582 | . 9 1 2 4 46 27 4 1 36 12 8 . 13 33 10 6 1 12 41 35 10 2 12 35 15 32 26 123 22 4 Drop 374 | . 2 . 2 5 39 13 5 . 17 6 . 3 7 31 3 2 8 1 25 27 11 1 6 33 17 12 23 57 15 3 Fire 1230 | 19 35 4 2 6 74 36 7 5 68 17 10 . 5 64 18 15 . 12 46 49 15 2 14 40 32 92 67 340 84 52 Melee 47 | . . . . . . 24 . . 16 7 . . . . . . . . . . . . . . . . . . . . Ram 1 | . . . . . . . . . . . . . . . . . . . . . . . . . . . . 1 . . Kick 49 | . . . . . 4 3 . 5 5 . . . . 5 . 2 . . . 1 . . . 3 1 1 2 16 . 1 Crush 1 | . 1 . . . . . . . . . . . . . . . . . . . . . . . . . . . . . Escape Stasis 18 | . . . . . . . . . 5 . . . . 5 . . . . . . . . . . . . . 8 . . Rewire 97 | . . . . . . . . . . . 46 . . . . . . . . 48 . . . . . . . 3 . . Trap 6 | . . . . . . . . . . . . . . 2 . . . . 4 . . . . . . . . . . . Miscellaneous . | . . . . . . . . . . . . . . . . . . . . . . . . . . . . . . . Route ------- -11/Scrapyard -10/Materials (discovered 5 exits: [*Mat x3] / [*Min] / Sub) -10/Mines (discovered 2 exits: [*Mat] / *Exi) -10/Exiles (discovered 2 exits: *Min x2) -9/Mines -8/Materials (discovered 2 exits: *Fac x2) -7/Factory (discovered 2 exits: *Low x2) -7/Lower Caves -7/Lower Caves -6/Factory (discovered 4 exits: *Fac x3 / *Low) -6/Lower Caves -6/Lower Caves (discovered 2 exits: Fac / *Dat) -6/Data Miner -5/Proximity Caves -5/Factory (discovered 2 exits: *Upp x2) -5/Upper Caves -5/Upper Caves (discovered 2 exits: *Fac / *Zhi) -5/Zhirov -4/Proximity Caves -4/Factory (discovered 5 exits: *Res x2 / *Ext x2 / Arm) -4/Extension (discovered 2 exits: *Res / *Cet) -4/Cetus (discovered 2 exits: *Res / *Arc) -4/Archives (discovered 2 exits: *Hub x2) -4/Hub_04(d) (discovered 4 exits: *Res x4) -3/Research (discovered 2 exits: *Qua x2) -3/Quarantine -2/Research (discovered 3 exits: *Acc / *Tes x2) -2/Testing (discovered 3 exits: Acc / [*Sec] / *Frg) -2/Protoforge -1/Access -1/Command To Epsilon Eridani History --------- Turn | Location | Event 20 | -11/Scrapyard | Discovered new exit (range 16) 204 | -11/Scrapyard | Entered Materials 300 | -10/Materials | Build established: Mutant 352 | -10/Materials | Discovered new exit (range 6) 1026 | -10/Materials | Discovered new exit (range 16) 1355 | -10/Materials | Discovered new exit (range 14) 1596 | -10/Materials | Discovered new exit (range 9) 1681 | -10/Materials | Learned location of Mines (-10) 1743 | -10/Materials | Learned 2 Mines zone layouts 1794 | -10/Materials | Loaded intel: 1 repair station location 1885 | -10/Materials | Identified exit to Subcaves 2053 | -10/Materials | Entered Mines 2054 | -10/Mines | Assembled infested the area 2054 | -10/Mines | Identified exit to Exiles 2059 | -10/Mines | Assisted by a Guerilla fighting off Assembled 2102 | -10/Mines | Discovered new exit (range 10) 2153 | -10/Mines | Deemed a non-threat by the Exiles lab entrance 2166 | -10/Mines | Entered Exiles 2167 | -10/Exiles | Identified exit to Mines 2251 | -10/Exiles | Met 8R-AWN 2297 | -10/Exiles | Met EX-HEX 2449 | -10/Exiles | Met EX-DEC 2546 | -10/Exiles | Visited The Gauntlet 2943 | -10/Exiles | Learned location of Zion (-7) 3131 | -10/Exiles | Met EX-BIN 3344 | -10/Exiles | Aligned with FarCom system 3347 | -10/Exiles | Given EX-Vault access code 3419 | -10/Exiles | Opened EX-Vault 3495 | -10/Exiles | Warned to stay clear of 0b10 Research branches 3706 | -10/Exiles | Attacked by the Exiles 3774 | -10/Exiles | Core integrity fell below 50% 3776 | -10/Exiles | Entered Mines 3790 | -9/Mines | Met a Derelict bent on vengeance 3806 | -9/Mines | Lost 3 parts (1n1u1w) 4199 | -9/Mines | Found a damaged Exp. Sensor Array with a note attached 4206 | -9/Mines | Found Prototype Device 4206 | -9/Mines | Identified Exp. Sensor Array 4347 | -9/Mines | Met a Derelict shopkeep closing up shop 4634 | -9/Mines | Learned Materials garrison access intel 4704 | -9/Mines | Discovered new exit (range 9) 4741 | -9/Mines | Assisted by bots powering up and referring to "LRC-V3" 4760 | -9/Mines | Entered Materials 4760 | -8/Materials | Accompanied by 3 allies 4760 | -8/Materials | Evolved 4 slots: Propulsion x2, Utility x1, Weapon x1 4761 | -8/Materials | Loaded intel: 1 garrison access location 5097 | -8/Materials | Build established: Scavenger-Tank 5287 | -8/Materials | Garrison activated, responded to threat 5576 | -8/Materials | Discovered new exit (range 5) 6081 | -8/Materials | Discovered new exit (range 9) 6149 | -8/Materials | Entered Factory 6149 | -7/Factory | Evolved 2 slots: Propulsion x1, Utility x1 6691 | -7/Factory | Build established: Scavenger-Mutant 6706 | -7/Factory | Allied Derelicts emerged from ambush trap array 6715 | -7/Factory | Identified exit to Lower Caves 7363 | -7/Factory | Garrison activated, responded to threat 7407 | -7/Factory | Build established: Scavenger-Gunner 7410 | -7/Factory | Destroyed 8 combat bots 7578 | -7/Factory | Entered Lower Caves 7666 | -7/Lower Caves | Spotted B-75 Beast 7760 | -7/Lower Caves | Learned Factory non-interactive machine intel 7899 | -7/Lower Caves | Discovered new exit (range 14) 7967 | -7/Lower Caves | Learned 4 Factory zone layouts 8206 | -7/Lower Caves | Entered another Lower Caves area 8276 | -7/Lower Caves | Discovered new exit (range 14) 8301 | -7/Lower Caves | Attracted the attention of an 0b10 outpost 8327 | -7/Lower Caves | Entered Factory 8327 | -6/Factory | Evolved 2 slots: Utility x2 8329 | -6/Factory | Loaded intel: 200 non-interactive machine locations 8332 | -6/Factory | Discovered new exit (range 13) 8618 | -6/Factory | Identified exit to Lower Caves 8716 | -6/Factory | Discovered new exit (range 14) 8731 | -6/Factory | Identified exit to Factory 8787 | -6/Factory | Discovered exit to Factory (range 10) 8989 | -6/Factory | Garrison activated, responded to threat 9147 | -6/Factory | Discovered exit to Factory (range 14) 9507 | -6/Factory | Lost 3 parts (2n1w) 9749 | -6/Factory | Build established: Scavenger-Assassin 10260 | -6/Factory | Entered Lower Caves 10278 | -6/Lower Caves | Encountered a Warlord checkpoint 10322 | -6/Lower Caves | Build established: Scavenger-Skirmisher 10771 | -6/Lower Caves | Attacked by a delusional Derelict stockpiling parts 10907 | -6/Lower Caves | Discovered new exit (range 5) 10915 | -6/Lower Caves | Identified exit to Lower Caves 11107 | -6/Lower Caves | Entered another Lower Caves area 11141 | -6/Lower Caves | Attacked by a delusional Derelict stockpiling Unaware 11444 | -6/Lower Caves | Encountered a Warlord checkpoint 11757 | -6/Lower Caves | Discovered new exit (range 12) 11796 | -6/Lower Caves | Identified exit to Data Miner 11869 | -6/Lower Caves | Entered Data Miner 11869 | -6/Data Miner | Accompanied by 3 allies 11871 | -6/Data Miner | Discovered new exit (range 6) 11875 | -6/Data Miner | Identified exit to Proximity Caves 11892 | -6/Data Miner | Met Data Miner 11914 | -6/Data Miner | Learned location of Section 7 (-2) 11914 | -6/Data Miner | Acquired the access code to Warlord's prototype stash 11929 | -6/Data Miner | Received God Mode back door access code from Data Miner 11974 | -6/Data Miner | Entered Proximity Caves 11974 | -5/Proximity Caves | Accompanied by 3 allies 12076 | -5/Proximity Caves | Spotter reported a threat 12076 | -5/Proximity Caves | Spotter reported a threat 12142 | -5/Proximity Caves | Learned Factory security intel 12493 | -5/Proximity Caves | Discovered exit to Factory (range 9) 12519 | -5/Proximity Caves | Entered Factory 12519 | -5/Factory | Evolved 2 slots: Power x1, Weapon x1 12520 | -5/Factory | Identified exit to Upper Caves 12714 | -5/Factory | Discovered exit to Upper Caves (range 15) 12736 | -5/Factory | Garrison activated, responded to threat 12819 | -5/Factory | Search patrols dispatched 13514 | -5/Factory | Incoming investigation squad redirected 13665 | -5/Factory | Fabricated Combat Drone Bay (x1) 14844 | -5/Factory | Entered Upper Caves 14897 | -5/Upper Caves | Learned Factory stockpile data 14953 | -5/Upper Caves | Encountered a Warlord checkpoint 15243 | -5/Upper Caves | Learned Factory security intel 15315 | -5/Upper Caves | Discovered new exit (range 12) 15525 | -5/Upper Caves | Identified exit to Upper Caves 15534 | -5/Upper Caves | Entered another Upper Caves area 15536 | -5/Upper Caves | Discovered new exit (range 7) 15542 | -5/Upper Caves | Identified exit to Factory 15785 | -5/Upper Caves | Learned 4 Factory zone layouts 15790 | -5/Upper Caves | Encountered a Warlord checkpoint 15880 | -5/Upper Caves | Attracted the attention of an 0b10 base 16141 | -5/Upper Caves | Learned Factory garrison access intel 16237 | -5/Upper Caves | Discovered new exit (range 5) 16245 | -5/Upper Caves | Identified exit to Zhirov 16346 | -5/Upper Caves | Entered Zhirov 16348 | -5/Zhirov | Discovered new exit (range 3) 16350 | -5/Zhirov | Identified exit to Proximity Caves 16392 | -5/Zhirov | Learned location of Quarantine (-3) 16392 | -5/Zhirov | Learned location of Testing (-2) 16392 | -5/Zhirov | Learned location of Command (-1) 16416 | -5/Zhirov | Found Alien Artifact 16416 | -5/Zhirov | Identified Integrated Reactor 16416 | -5/Zhirov | Installed Integrated Reactor, increased core energy generation (+10) 16435 | -5/Zhirov | Found Alien Artifact 16527 | -5/Zhirov | Entered Proximity Caves 16615 | -4/Proximity Caves | Attracted the attention of an 0b10 checkpoint 17052 | -4/Proximity Caves | Discovered exit to Factory (range 10) 17197 | -4/Proximity Caves | Entered Factory 17197 | -4/Factory | Evolved 2 slots: Utility x2 17198 | -4/Factory | Identified exit to Extension 17199 | -4/Factory | Identified exit to Research 17199 | -4/Factory | Identified exit to Armory 17202 | -4/Factory | Loaded intel: 4 garrison access locations 17477 | -4/Factory | Discovered exit to Extension (range 13) 17590 | -4/Factory | Build established: Trapper-Skirmisher 17971 | -4/Factory | Discovered exit to Research (range 14) 18087 | -4/Factory | Found Prototype Hackware 18087 | -4/Factory | Identified Exp. Hacking Suite 18270 | -4/Factory | Entered Extension 18468 | -4/Extension | Rescued a captive Derelict 18469 | -4/Extension | Rescued a captive Derelict 18642 | -4/Extension | Rescued A7 18882 | -4/Extension | Build established: Scavenger-Gunner 18988 | -4/Extension | Spotted B-86 Titan 19004 | -4/Extension | Allies destroyed B-86 Titan 19026 | -4/Extension | Spotted B-86 Titan 19064 | -4/Extension | Allies destroyed B-86 Titan 19195 | -4/Extension | Rescued a captive Derelict 19262 | -4/Extension | Watched by a mysterious "MATRIX" hacker 19357 | -4/Extension | Rescued a captive Derelict 19371 | -4/Extension | Rescued a captive Derelict 19399 | -4/Extension | Rescued a captive Derelict 19408 | -4/Extension | Rescued a captive Derelict 19445 | -4/Extension | Disrupted transfer network 19465 | -4/Extension | Discovered exit to Research (range 10) 19467 | -4/Extension | Discovered new exit (range 6) 19481 | -4/Extension | Identified exit to Cetus 19518 | -4/Extension | Entered Cetus 19518 | -4/Cetus | Accompanied by 15 allies (A7) 19523 | -4/Cetus | Acquired a Cetus Manufacturing Module code from A7 19530 | -4/Cetus | Spotted Cetus Guard 19531 | -4/Cetus | Spotted Cetus Guard 19532 | -4/Cetus | Spotted Cetus Guard 19542 | -4/Cetus | Spotted Cetus Guard 19544 | -4/Cetus | Destroyed Cetus Guard 19553 | -4/Cetus | Allies destroyed Cetus Guard 19554 | -4/Cetus | Allies destroyed Cetus Guard 19566 | -4/Cetus | Allies destroyed Cetus Guard 19568 | -4/Cetus | Extracted ID and sensor layout for unrecognized location from A7's data core 19591 | -4/Cetus | Lost 9 allies 19636 | -4/Cetus | Started Cetus Manufacturing Module 19642 | -4/Cetus | Discovered new exit (range 22) 19661 | -4/Cetus | Manufactured an Enhanced Grunt 19664 | -4/Cetus | Identified exit to Archives 19686 | -4/Cetus | Manufactured an Enhanced Grunt 19711 | -4/Cetus | Manufactured an Enhanced Grunt 19736 | -4/Cetus | Manufactured an Enhanced Grunt 19761 | -4/Cetus | Manufactured an Enhanced Grunt 19786 | -4/Cetus | Spotted Cetus Guard 19792 | -4/Cetus | Spotted Cetus Guard 19793 | -4/Cetus | Spotted Cetus Guard 19800 | -4/Cetus | Spotted Cetus Guard 19805 | -4/Cetus | Allies destroyed Cetus Guard 19807 | -4/Cetus | Allies destroyed Cetus Guard 19808 | -4/Cetus | Discovered exit to Research (range 22) 19812 | -4/Cetus | Allies destroyed Cetus Guard 19812 | -4/Cetus | Destroyed Cetus Guard 19836 | -4/Cetus | Met Revision 17 19913 | -4/Cetus | Entered Archives 19913 | -4/Archives | Accompanied by 11 allies 20031 | -4/Archives | Met Zhirov 20031 | -4/Archives | Discovered new exit (range 22) 20037 | -4/Archives | Reinforcements dispatched to Archives 20040 | -4/Archives | Discovered new exit (range 22) 20062 | -4/Archives | Identified exit to Hub_04(d) 20082 | -4/Archives | Reinforcements dispatched to Archives 20089 | -4/Archives | Entered Hub_04(d) 20089 | -4/Hub_04(d) | Accompanied by 5 allies 20089 | -4/Hub_04(d) | Spotted B-86 Titan 20111 | -4/Hub_04(d) | Destroyed B-86 Titan 20121 | -4/Hub_04(d) | Found Prototype Device 20121 | -4/Hub_04(d) | Identified Exp. Thermal Shield 20124 | -4/Hub_04(d) | Lost 5 allies 20173 | -4/Hub_04(d) | Discovered exit to Research (range 22) 20180 | -4/Hub_04(d) | Network Hub disabled 20187 | -4/Hub_04(d) | Network Hub disabled 20218 | -4/Hub_04(d) | Network Hub disabled 20218 | -4/Hub_04(d) | Spotted Lightning 20218 | -4/Hub_04(d) | Spotted Lightning 20218 | -4/Hub_04(d) | Spotted Lightning 20241 | -4/Hub_04(d) | Destroyed 8 combat bots 20256 | -4/Hub_04(d) | System corruption reached 10% 20259 | -4/Hub_04(d) | Entered Research 20259 | -3/Research | Evolved 2 slots: Utility x2 20279 | -3/Research | Lost 3 parts (1u2w) 20459 | -3/Research | Revision forces began assault on 0b10 20461 | -3/Research | Central database locked down 20519 | -3/Research | Met up with Revision 17++ 20568 | -3/Research | Spotted B-86 Titan 20585 | -3/Research | Destroyed B-86 Titan 20722 | -3/Research | Identified exit to Quarantine 20905 | -3/Research | Build established: Scavenger-Skirmisher 20959 | -3/Research | Research terminal network offline 21113 | -3/Research | Spotted Striker 21172 | -3/Research | Spotted Striker 21172 | -3/Research | Spotted Striker 21179 | -3/Research | Destroyed Striker 21298 | -3/Research | Spotted B-86 Titan 21326 | -3/Research | Spotted Striker 21330 | -3/Research | Spotted Executioner 21333 | -3/Research | Destroyed Executioner 21351 | -3/Research | Destroyed Striker 21356 | -3/Research | Spotted Executioner 21356 | -3/Research | Spotted Striker 21374 | -3/Research | Found Prototype Processor 21374 | -3/Research | Identified Exp. Targeting Computer 21383 | -3/Research | Found Prototype Processor 21383 | -3/Research | Identified Exp. Core Analyzer 21392 | -3/Research | Lost 5 allies 21410 | -3/Research | Destroyed Executioner 21414 | -3/Research | Destroyed Striker 21461 | -3/Research | Spotted Striker 21466 | -3/Research | Entered Quarantine 21481 | -3/Quarantine | Found Alien Reactor 21559 | -3/Quarantine | Found Alien Energy Cannon 21706 | -3/Quarantine | Discovered new exit (range 15) 21726 | -3/Quarantine | Found Alien Artifact 21726 | -3/Quarantine | Identified Phase Redirector 21746 | -3/Quarantine | Found Alien Artifact 21748 | -3/Quarantine | Identified Subatomic Replicator 21748 | -3/Quarantine | Used Subatomic Replicator to replicate Centrium Medium Armor Plating 21860 | -3/Quarantine | Found Alien Artifact 21871 | -3/Quarantine | Found Alien Artifact 22009 | -3/Quarantine | Identified exit to Research 22010 | -3/Quarantine | Entered Research 22010 | -2/Research | Evolved 2 slots: Propulsion x1, Utility x1 22264 | -2/Research | Build established: Scavenger-Tank 22320 | -2/Research | Identified exit to Testing 22470 | -2/Research | System corruption reached 10% 22543 | -2/Research | Destroyed 8 combat bots 22655 | -2/Research | Repaired Centrium Medium Armor Plating 22716 | -2/Research | Lost 4 parts (2n1u1w) 22860 | -2/Research | Build established: Scavenger-Skirmisher 22874 | -2/Research | Discovered new exit (range 22) 22914 | -2/Research | Identified exit to Access 23045 | -2/Research | Found Adv. Powered Armor 23048 | -2/Research | Found Adv. Powered Armor 23051 | -2/Research | Found Adv. Powered Armor 23053 | -2/Research | Found Adv. Powered Armor 23095 | -2/Research | Central database locked down 23232 | -2/Research | Entered Testing 23280 | -2/Testing | Found Prototype Hackware 23280 | -2/Testing | Identified Ghost Barrier 23316 | -2/Testing | Found Prototype Energy Cannon 23316 | -2/Testing | Identified Potential Cannon 23475 | -2/Testing | Found Prototype Protection 23475 | -2/Testing | Identified SHELL Armor 23694 | -2/Testing | Found Prototype Energy Cannon 23694 | -2/Testing | Identified Null Cannon 23767 | -2/Testing | Spotted Fortress 23839 | -2/Testing | Discovered new exit (range 5) 23839 | -2/Testing | Discovered new exit (range 6) 23843 | -2/Testing | Identified exit to Protoforge 23941 | -2/Testing | Entered Protoforge 23970 | -2/Protoforge | Superfortress began startup sequence 24083 | -2/Protoforge | Discovered exit to Access (range 10) 24209 | -2/Protoforge | Found Prototype Device 24209 | -2/Protoforge | Identified Exp. System Purifier 24223 | -2/Protoforge | Found Prototype Device 24223 | -2/Protoforge | Identified Cep. Recoil Nullifier 24235 | -2/Protoforge | Found Prototype Device 24236 | -2/Protoforge | Identified Exp. Trap Extractor 24260 | -2/Protoforge | Found Prototype Energy Gun 24260 | -2/Protoforge | Identified Cep. Variable Chargecaster 24277 | -2/Protoforge | Identified Terrabomb (x2) 24277 | -2/Protoforge | Used Terrabomb 24277 | -2/Protoforge | Additional patrols dispatched to research labs 24315 | -2/Protoforge | Spotted Hotshot 24315 | -2/Protoforge | Spotted Hotshot 24315 | -2/Protoforge | Spotted Hotshot 24315 | -2/Protoforge | Spotted Hotshot 24334 | -2/Protoforge | Identified Transdimensional Reconstructor 24336 | -2/Protoforge | Found Prototype Device 24336 | -2/Protoforge | Identified Crosscalibrator 24344 | -2/Protoforge | Spotted Immortal 24344 | -2/Protoforge | Spotted Immortal 24371 | -2/Protoforge | Destroyed Immortal 24382 | -2/Protoforge | Destroyed Immortal 24393 | -2/Protoforge | Spotted Decapitator 24393 | -2/Protoforge | Spotted Decapitator 24393 | -2/Protoforge | Spotted Decapitator 24393 | -2/Protoforge | Spotted Decapitator 24402 | -2/Protoforge | Destroyed Decapitator 24411 | -2/Protoforge | Destroyed Decapitator 24414 | -2/Protoforge | Destroyed Decapitator 24449 | -2/Protoforge | Destroyed 7 combat bots 24466 | -2/Protoforge | Scanned by Researcher 24519 | -2/Protoforge | Found Prototype Device 24519 | -2/Protoforge | Identified Exp. Remote Shield 24526 | -2/Protoforge | Found Prototype Device 24526 | -2/Protoforge | Identified Exp. EM Disruption Field 24534 | -2/Protoforge | Found Cep. Beam Splitter 24537 | -2/Protoforge | Found Prototype Device 24537 | -2/Protoforge | Identified Cep. Reaction Jets 24541 | -2/Protoforge | Found Cep. Energy Mantle 24548 | -2/Protoforge | Found Faulty Cep. Energy Mantle 24575 | -2/Protoforge | Build established: Scavenger-Gunner 24598 | -2/Protoforge | Forge Plexus network access discovered 24743 | -2/Protoforge | Destroyed V244-p 24758 | -2/Protoforge | Found Cep. Antigrav Storage Unit 24761 | -2/Protoforge | Found Prototype Ballistic Gun 24761 | -2/Protoforge | Identified Multirail 24767 | -2/Protoforge | Found Cep. Chromion Battery 24770 | -2/Protoforge | Found Prototype Device 24771 | -2/Protoforge | Identified Cep. Antimissile System 24781 | -2/Protoforge | Found Faulty Cep. Matter Streamer 24795 | -2/Protoforge | Found Cep. NT7 Matterbank 24901 | -2/Protoforge | Found Cep. Matter Streamer 25064 | -2/Protoforge | Spotted V922-r 25064 | -2/Protoforge | Spotted V149-l 25064 | -2/Protoforge | Spotted V326-z 25064 | -2/Protoforge | Spotted V210-l 25080 | -2/Protoforge | Destroyed V922-r 25099 | -2/Protoforge | Destroyed V210-l 25102 | -2/Protoforge | Destroyed V326-z 25109 | -2/Protoforge | Destroyed V149-l 25116 | -2/Protoforge | Lost 5 parts (3n2w) 25146 | -2/Protoforge | Found Cep. Arcsight Missile Launcher 25148 | -2/Protoforge | Found Cep. Rapid Grenade Launcher 25176 | -2/Protoforge | Destroyed Hotshot 25176 | -2/Protoforge | Destroyed Hotshot 25178 | -2/Protoforge | Destroyed Hotshot 25186 | -2/Protoforge | Destroyed Hotshot 25272 | -2/Protoforge | Found Cep. Chromion Battery 25402 | -2/Protoforge | Build established: Scavenger-Mutant 25404 | -2/Protoforge | Spotted Decapitator 25404 | -2/Protoforge | Spotted V265-p 25404 | -2/Protoforge | Spotted V210-k 25443 | -2/Protoforge | Destroyed V265-p 25453 | -2/Protoforge | Spotted Decapitator 25455 | -2/Protoforge | Destroyed Decapitator 25455 | -2/Protoforge | Destroyed Decapitator 25461 | -2/Protoforge | Destroyed V210-k 25482 | -2/Protoforge | Destroyed 8 combat bots 25482 | -2/Protoforge | Found Prototype Device 25482 | -2/Protoforge | Identified Exp. Shield Generator 25545 | -2/Protoforge | Found Cep. Weapon Articulator 25633 | -2/Protoforge | Spotted Decapitator 25642 | -2/Protoforge | Spotted Decapitator 25642 | -2/Protoforge | Spotted Decapitator 25642 | -2/Protoforge | Spotted Decapitator 25656 | -2/Protoforge | Destroyed Decapitator 25661 | -2/Protoforge | Destroyed Decapitator 25661 | -2/Protoforge | Destroyed Decapitator 25691 | -2/Protoforge | First assault squad dispatched 25720 | -2/Protoforge | Found Cep. Biometal Exoskeleton 25744 | -2/Protoforge | Spotted V098-b 25764 | -2/Protoforge | Destroyed V098-b 25772 | -2/Protoforge | Found Cep. Biometal Exoskeleton 25776 | -2/Protoforge | Spotted V677-b 25781 | -2/Protoforge | Spotted V081-g 25800 | -2/Protoforge | Destroyed V677-b 25812 | -2/Protoforge | Destroyed V081-g 25812 | -2/Protoforge | Spotted Immortal 25825 | -2/Protoforge | Destroyed Immortal 25825 | -2/Protoforge | Spotted Immortal 25835 | -2/Protoforge | Destroyed Immortal 25835 | -2/Protoforge | Spotted Immortal 25844 | -2/Protoforge | Rewired Immortal 25997 | -2/Protoforge | Spotted Immortal 25998 | -2/Protoforge | Spotted Immortal 26013 | -2/Protoforge | Core integrity fell below 50% 26026 | -2/Protoforge | Spotted V166-s 26036 | -2/Protoforge | Found Faulty Cep. Lightning Penetrator 26039 | -2/Protoforge | Found Faulty Cep. Lightning Penetrator 26052 | -2/Protoforge | Destroyed Immortal 26054 | -2/Protoforge | Destroyed Immortal 26069 | -2/Protoforge | Destroyed V166-s 26085 | -2/Protoforge | Spotted V100-k 26115 | -2/Protoforge | Destroyed V100-k 26134 | -2/Protoforge | Found Cep. Miniperforator 26136 | -2/Protoforge | Destroyed 8 combat bots 26138 | -2/Protoforge | Found Cep. Helical Railcannon 26140 | -2/Protoforge | Found Cep. XC Strikerail 26143 | -2/Protoforge | Found Cep. Miniperforator 26146 | -2/Protoforge | Found Cep. Plasma Driver 26268 | -2/Protoforge | Found Cep. Zero-point Core 26349 | -2/Protoforge | Spotted AP7-3 26349 | -2/Protoforge | Spotted AP7-3 26379 | -2/Protoforge | Destroyed AP7-3 26398 | -2/Protoforge | Destroyed AP7-3 26430 | -2/Protoforge | Found Cep. Thermoelectric Network 26436 | -2/Protoforge | Found Cep. Cloak Mesh 26569 | -2/Protoforge | Found Cep. Nanofilaments [Tensile] 26569 | -2/Protoforge | Installed Cep. Nanofilaments [Tensile], 3 resistances modified: KI +20%, TH -10%, I +20% 26587 | -2/Protoforge | Found Transdimensional Reconstructor 26596 | -2/Protoforge | Found Cep. Navigation Harness 26823 | -2/Protoforge | Build established: Gunner 26889 | -2/Protoforge | Lost 3 parts (1u2w) 26996 | -2/Protoforge | Spotted Decapitator 26996 | -2/Protoforge | Spotted Decapitator 26996 | -2/Protoforge | Spotted Overlord 26996 | -2/Protoforge | Spotted Decapitator 26997 | -2/Protoforge | Spotted Decapitator 26997 | -2/Protoforge | Spotted Decapitator 26997 | -2/Protoforge | Spotted Decapitator 26999 | -2/Protoforge | Spotted Decapitator 26999 | -2/Protoforge | Spotted Decapitator 27014 | -2/Protoforge | Entered Access 27014 | -1/Access | Evolved 2 slots: Utility x2 27159 | -1/Access | Build established: Mutant 27542 | -1/Access | Spotted B-99 Colossus 27626 | -1/Access | Destroyed B-99 Colossus 27670 | -1/Access | Build established: Scavenger-Tank 27764 | -1/Access | First assault squad dispatched 27793 | -1/Access | Unchained authorized (CL-0N3) 28116 | -1/Access | Destroyed 7 combat bots 28119 | -1/Access | Warped through subspace 28418 | -1/Access | Discovered new exit (range 8) 28422 | -1/Access | Build established: Skirmisher 28426 | -1/Access | Identified exit to Command 28429 | -1/Access | Entered Command 28512 | -1/Command | Spotted M Guard 28512 | -1/Command | Spotted M Guard 28512 | -1/Command | Spotted Combat Programmer 28513 | -1/Command | Spotted Combat Programmer 28519 | -1/Command | Destroyed 7 combat bots 28528 | -1/Command | System corruption reached 10% 28529 | -1/Command | Destroyed Combat Programmer 28553 | -1/Command | Destroyed Combat Programmer 28656 | -1/Command | Lost 10 parts (1p1n3u5w) 28679 | -1/Command | First assault squad dispatched 28707 | -1/Command | Incoming assault squad redirected 28717 | -1/Command | Destroyed M Guard 28722 | -1/Command | Used Terrabomb 28722 | -1/Command | Spotted B-99 Colossus 28722 | -1/Command | Spotted Executioner 28722 | -1/Command | Spotted Executioner 28722 | -1/Command | Spotted B-99 Colossus 28722 | -1/Command | Spotted Executioner 28722 | -1/Command | Spotted Executioner 28722 | -1/Command | Spotted Striker 28722 | -1/Command | Spotted Striker 28722 | -1/Command | Spotted Alpha 7 28722 | -1/Command | Spotted Alpha 7 28728 | -1/Command | Discovered new exit (range 3) 28730 | *** | Escaped! Last Messages --------------- 28726_ Slug penetrates Access Shell. 28726_ Penetrated by Slug. 28726_ Access Shell breached. 28726_ Penetrated by Slug. 28727_ Knocked back. 28727_ K-01 Serf collects debris. 28728_ The unstable cave ceiling collapses. 28728_ EXIT=FOUND 28728_ Penetrated by Slug. 28728_ Slug penetrates Access Shell. 28729_ The unstable cave ceiling collapses. 28729_ Penetrated by Slug. 28730_ Slug penetrates Access Shell. 28730_ Penetrated by Slug. 28730_ Slug penetrates Access Shell. 28730_ Penetrated by Slug. 28730_ Slug penetrates Access Shell. 28730_ Penetrated by Slug. 28730_ Slug penetrates Access Shell. 28730_ Penetrated by Slug. Map ----- +----------------------------------------------------+ | ?????????????????????????????????????????????????? | | ?????????????????????????????????????????????????? | | ?????????????????????????????????????????????????? | | ?????????????????????????????????????????????????? | | ?????????????????????????????????????????????????? | | ?????????????????????????????????????????????????? | | ?????????????????????????????????????????????????? | | ?????????????????????????????????????????????????? | | ?????????????????????????????????????????????????? | | ?????????????????????????????????????????????????? | | ?????????????????????????????????????????????????? | | ?????????????????????????????????????????????????? | | ?????????????????????????????????????????????????? | | ??????????????????????????????? ???????????????? | | ???????????????????????????????""" ????????????? | | ?????????????????????????????? ;;;;????????????? | | ????????????????????????????? ???????????? | | ????????????????????????????"""";; ??????????? | | ????????????????????????????""";;; ??????????? | | ???????????????????????????? BB;;;;;;""?????????? | | ???????????????????????????? BB;;;;"""""????????? | | ???????????????????????????? ; " " " ""???????? | | ???????????????????????""""" E ^ "??????? | | ???????????????????????" E +??????? | | ?????????????? "????" "" " K +??????? | | ????????????? ""???" @" 7 +??????? | | ????????????? "" ?" % BB + ????? | | ????????????" "" " K BB ^ """????? | | ????????????" "" % ;E;7; ; """" ????? | | ????????????" "" E;;;;;;;;"""" ???? | | ????????????" "" ;;;;;;;""""" ???? | | ????????????" """;;;;;;;;%;;;;% " ??? | | ????????????? "";;;;;;;;;;;;;; " ??? | | ????????????? ;;;;;; " ??? | | ?????????????? ; %# # " w??? | | ?????????????? ; % """""" ??? | | ?????????????? ; p # ???? | | ??????????????? ; Y% p# """"" ???? | | ????????????###""";;;;;;;;;;/; # " ????? | | ????????????# h " " ????? | | ????????????# """" ""????? | | ????????????# h " ?????? | | ???????# ???# = w " ?????? | | ???????# #### %= ""??????? | | ???????# ##"""*"""""""""""""""" ??????? | | ???????# #??? " ??????? | | ???????+ #????? ?? ???????? | | ???????# #???????? ?????????????? | | ???????+ ########??? ???????????????? | | ???????###### # #???????????????????????? | +----------------------------------------------------+ Best States ------------- Heat Dissipation 124 Energy Generation 67 Energy Capacity 1400 Matter Stores 300 Matter Capacity 300 Sight Range 22 Robot Scan Range 20 Terrain Scan Density 10 ECM Strength 2 Jamming Range 14 Cloak Strength 6 Base Temperature (-) 200 Armor Coverage 900 Resistance: KI 50 Resistance: TH 75 Resistance: I 20 Point Defense Rating 480 Phase Shifting 15 Evasion (%) 88 Targeting Accuracy 30 Core Analysis 8 Recoil Reduction 2 Offensive Hacking 16 Trap Extractor Capacity 8 Item Schematics ----------------- Combat Drone Bay | -6/Data Miner | Free Lgt. Regenerative Plating | -6/Data Miner | Free Cld. Nuclear Pulse Thruster | -6/Data Miner | Free Imp. Energy Well | -6/Data Miner | Free Hvy. Gatling Laser | -6/Data Miner | Free Imp. Heavy Treads | -6/Data Miner | Free Adv. Focal Shield | -6/Data Miner | Free Adv. Concussive RPG | -6/Data Miner | Free Adv. Drone Bay | -6/Data Miner | Free Heavy Servo Lattice | -6/Data Miner | Free Adv. Recalibrator | -6/Data Miner | Free Assault Drone Bay | -5/Zhirov | Free Exp. Heat Sink | -5/Zhirov | Free Exp. Optical Array | -5/Zhirov | Free Imp. Arc Thrower | -5/Zhirov | Free Hvy. Armored Exoskeleton | -4/Extension | Hacked Hvy. Dispersion Rifle | -2/Protoforge | Archive Exp. Q-thruster | -2/Protoforge | Archive Hvy. Wave Gun | -2/Protoforge | Archive Adv. Plasma Rifle | -2/Protoforge | Archive Mni. Smartbomb Launcher | -2/Protoforge | Archive Lgt. Antimatter Cannon | -2/Protoforge | Archive Adv. EM Disruption Field | -2/Protoforge | Archive Robot Schematics ------------------ B-48 Gladiator | -6/Data Miner | Free Y-54 Guardian | -6/Data Miner | Free S-27 Virus | -6/Data Miner | Free A-15 Conveyor | -6/Data Miner | Free E-15 Imp | -2/Testing | Archive T-07 Excavator | -2/Protoforge | Archive Fabricated ------------ Combat Drone Bay | x1 | -5/Factory Repaired ---------- Centrium Medium Armor Plating | 4% | -2/Research Studied --------- Carbon-fiber Leg | -8/Materials | Hacked Imp. Aluminum Leg | -8/Materials | Hacked Titanium Leg | -8/Materials | Hacked Imp. Carbon-fiber Leg | -7/Factory | Hacked Arm. Huge Wheel | -7/Factory | Hacked Gauss Rifle | -6/Factory | Hacked Flexi-carbon Leg | -6/Factory | Hacked Arm. Leg | -5/Factory | Hacked Myomer Leg | -3/Research | Hacked KE Penetrator | -3/Research | Hacked Railgun | -3/Research | Hacked Coil Gun | -3/Research | Hacked Hvy. Shock Bomb Launcher | -3/Research | Hacked Enh. Nova Cannon | -2/Research | Hacked Quantum Reactor | -1/Access | Hacked Alien Tech Used ----------------- Integrated Reactor Phase Redirector Subatomic Replicator Terrabomb Concept Nanofilaments [Tensile] Transdimensional Reconstructor Achievements -------------- Equal Opportunity Bot I'm Outta Here, Maybe Not Immortal After All Power Plant Challenges ------------ None Game ------ Seed BlastPietyGutpuncher Manual? 0 Play Time 07:22:28 Cumulative 525.2 hours Start 2026.08.19 @ 19:54:00 End 2026.08.20 @ 04:51:03 Sessions 1 Manual Loads 0 Difficulty Rogue Special Mode None Game No. 299 Rogue 299 Adventurer 0 Explorer 0 Win Type 0 Total 26 Types 14/1/4/2/1/0/1/2/1/0 Lore% 94 Gallery% 84 Achievement% 77 Wizard Run 0 Options --------- Layout 1 ASCII 0 Keyboard 0 Movement Mouse Keybinds 0 Fullscreen 1 Font 24/Smallcaps Map View 50x35 Zoom Use 0% Tactical HUD 1 Map Filters NONE Filters NONE Steam 1 RUN: 8fbd30b5-379a-4dec-bc3b-e0e4bc75368e